Workbook

Sheet INGRESO DE DATOS
A11: Cotización de Seguro Médico - Bupa Global Health Plans
A13: 1. INGRESE LOS DATOS DEL PROPUESTO ASEGURADO :
B15: Nombre del asegurado titular : | D15: Nombre del Cliente
B17: Número de adultos en la póliza : | F17: Número de hijos en la póliza : | H17: 0
B19: Edad del asegurado titular : | F19: Edad del (de la) cónyuge : | H19: 0
C21: Aplica descuento especial : | E21: FALSE
C23: Aplica descuento por pago fraccionado: | E23: FALSE
A25: 2. INGRESE EL NOMBRE DE LA AGENCIA ASESORA :
B27: Agencia / Agente : | D27: Nombre del Agente
A29: 3. ESCOJA EL PRODUCTO PARA VISUALIZAR LA COTIZACION RESPECTIVA :

Sheet Global Major Medical Health Pla
M30: FALSE
B31: Nombre del asegurado titular : | C31: =+'INGRESO DE DATOS'!$D$15 -> Nombre del Cliente | K31: Deducibles | M31: PLAN 1 | N31: PLAN 2
K32: Dentro del país de residencia | M32: 10000 | N32: 20000
B33: Agencia / Agente : | C33: =+'INGRESO DE DATOS'!$D$27 -> Nombre del Agente | K33: Fuera del país de residencia | M33: 10000 | N33: 20000
D35: Número de adultos en la póliza : | F35: =+'INGRESO DE DATOS'!$D$17 -> 0 | H35: Edad del asegurado titular : | I35: =+'INGRESO DE DATOS'!$D$19 -> 0 | K35: TARIFAS ANUALES
K36: Prima del asegurado titular : | M36: =IF('INGRESO DE DATOS'!$E$21=TRUE,VLOOKUP($I$35,Tablas!$A$905:$G$971,3,TRUE)*0.95+(Tablas!$Q$2),VLOOKUP($I$35,Tablas!$A$905:$G$971,3,TRUE)+(Tablas!$Q$2)) ->  | N36: =IF('INGRESO DE DATOS'!$E$21=TRUE,VLOOKUP($I$35,Tablas!$A$905:$G$971,4,TRUE)*0.95+(Tablas!$Q$2),VLOOKUP($I$35,Tablas!$A$905:$G$971,4,TRUE)+(Tablas!$Q$2)) -> 
D37: Número de hijos en la póliza : | F37: =+'INGRESO DE DATOS'!$H$17 -> 0 | H37: Edad del (de la) cónyuge : | I37: =+'INGRESO DE DATOS'!$H$19 -> 0 | K37: Prima del (de la) cónyuge: | M37: =IF('INGRESO DE DATOS'!$E$21=TRUE,(IF($F$35=1,0,(VLOOKUP($I$37,Tablas!$A$905:$G$971,3,TRUE))))*0.95+(IF($F$35=1,0,(Tablas!$Q$2))),(IF($F$35=1,0,(VLOOKUP($I$37,Tablas!$A$905:$G$971,3,TRUE)+Tablas!$Q$2)))) ->  | N37: =IF('INGRESO DE DATOS'!$E$21=TRUE,(IF($F$35=1,0,(VLOOKUP($I$37,Tablas!$A$905:$G$971,4,TRUE))))*0.95+(IF($F$35=1,0,(Tablas!$Q$2))),(IF($F$35=1,0,(VLOOKUP($I$37,Tablas!$A$905:$G$971,4,TRUE)+Tablas!$Q$2)))) -> 
K38: Prima del (de los) Hijo (s) : | M38: =IF('INGRESO DE DATOS'!$E$21=TRUE,(IF($F$37=0,0,(VLOOKUP($F$37,Tablas!$A$972:$G$974,3,TRUE))))*0.95,IF($F$37=0,0,(VLOOKUP($F$37,Tablas!$A$972:$G$974,3,TRUE)))) -> 0 | N38: =IF('INGRESO DE DATOS'!$E$21=TRUE,(IF($F$37=0,0,(VLOOKUP($F$37,Tablas!$A$972:$G$974,4,TRUE))))*0.95,IF($F$37=0,0,(VLOOKUP($F$37,Tablas!$A$972:$G$974,4,TRUE)))) -> 0
C39: FECHA DE COTIZACION : | E39: =NOW() -> 2022-02-24T10:52:43.520 | K39: TOTAL PRIMA NETA : | M39: =SUM(M36:M38) ->  | N39: =SUM(N36:N38) -> 
K40: Costo administrativo anual : | M40: 937.5 | N40: 937.5
K41: IVA (16%) : | M41: =+M39*16% ->  | N41: =+N39*16% -> 
K42: =IF('INGRESO DE DATOS'!$E$21=TRUE,"Costo total, (-5% de descuento)","Gran total anual") -> Gran total anual | M42: =SUM(M39:M41) + M40*0.16 ->  | N42: =SUM(N39:N41) + N40*0.16 -> 
K44: TARIFAS SEMESTRALES
K45: Prima del asegurado titular : | M45: =M36*(1+Tablas!$K$4) ->  | N45: =N36*(1+Tablas!$K$4) -> 
K46: Prima del (de la) cónyuge: | M46: =M37*(1+Tablas!$K$4) ->  | N46: =N37*(1+Tablas!$K$4) -> 
K47: Prima del (de los) Hijo (s) : | M47: =M38*(1+Tablas!$K$4) -> 0 | N47: =N38*(1+Tablas!$K$4) -> 0
K48: TOTAL PRIMA NETA : | M48: =SUM(M45:M47) ->  | N48: =SUM(N45:N47) -> 
K49: Costo administrativo anual : | M49: 937.5 | N49: 937.5
K50: IVA (16%) : | M50: =SUM(M48:M49)*16% ->  | N50: =SUM(N48:N49)*16% -> 
K51: TOTAL primera cuota : | M51: =((M48/2)+M49)*1.16 ->  | N51: =((N48/2)+N49)*1.16 -> 
K52: Valor segunda cuota : | M52: =M48/2*1.16 ->  | N52: =N48/2*1.16 -> 
K53: =IF('INGRESO DE DATOS'!$E$21=TRUE,"Costo total, (-5% de descuento)","Gran total anual") -> Gran total anual | M53: =M51+M52 ->  | N53: =N51+N52 -> 
K55: TARIFAS TRIMESTRALES
K56: Prima del asegurado titular : | M56: =M36*(1+Tablas!$K$3) ->  | N56: =N36*(1+Tablas!$K$3) -> 
K57: Prima del (de la) cónyuge: | M57: =M37*(1+Tablas!$K$3) ->  | N57: =N37*(1+Tablas!$K$3) -> 
K58: Prima del (de los) Hijo (s) : | M58: =M38*(1+Tablas!$K$3) -> 0 | N58: =N38*(1+Tablas!$K$3) -> 0
K59: TOTAL PRIMA NETA : | M59: =SUM(M56:M58) ->  | N59: =SUM(N56:N58) -> 
K60: Costo administrativo anual : | M60: 937.5 | N60: 937.5
K61: IVA (16%) : | M61: =SUM(M59:M60)*16% ->  | N61: =SUM(N59:N60)*16% -> 
K62: TOTAL primera cuota : | M62: =((M59/4)+M60)*1.16 ->  | N62: =((N59/4)+N60)*1.16 -> 
K63: Valor cuota trimestral 2 a 4: | M63: =M59/4*1.16 ->  | N63: =N59/4*1.16 -> 
K64: =IF('INGRESO DE DATOS'!$E$21=TRUE,"Costo total, (-5% de descuento)","Gran total anual") -> Gran total anual | M64: =M62+(M63*3) ->  | N64: =N62+(N63*3) -> 
K66: TARIFAS MENSUALES
K67: Prima del asegurado titular : | M67: =M36*(1+Tablas!$K$2) ->  | N67: =N36*(1+Tablas!$K$2) -> 
K68: Prima del (de la) cónyuge: | M68: =M37*(1+Tablas!$K$2) ->  | N68: =N37*(1+Tablas!$K$2) -> 
K69: Prima del (de los) Hijo (s) : | M69: =M38*(1+Tablas!$K$2) -> 0 | N69: =N38*(1+Tablas!$K$2) -> 0
K70: TOTAL PRIMA NETA : | M70: =SUM(M67:M69) ->  | N70: =SUM(N67:N69) -> 
K71: Costo administrativo anual : | M71: 937.5 | N71: 937.5
K72: IVA (16%) : | M72: =SUM(M70:M71)*16% ->  | N72: =SUM(N70:N71)*16% -> 
K73: TOTAL primera cuota : | M73: =((M70/12)+M71)*1.16 ->  | N73: =((N70/12)+N71)*1.16 -> 
K74: Valor cuota mensual 2 a 12 : | M74: =M70/12*1.16 ->  | N74: =N70/12*1.16 -> 
K75: =IF('INGRESO DE DATOS'!$E$21=TRUE,"Costo total, (-5% de descuento)","Gran total anual") -> Gran total anual | M75: =M73+(M74*11) ->  | N75: =N73+(N74*11) -> 
B77: Tarifas en MXN$ - Válidas desde el 01 de marzo de 2022
B78: La presente cotización es de carácter informativo y no constituye el monto de la prima definitiva ni las condiciones de la misma. La emisión de la póliza está sujeta a valoración del riesgo y/o cambio en la tarifa por parte del área de Suscripción de Bupa y puede tener modificaciones por lo que no expresa compromiso legal para la cobertura del seguro. Este cotizador es válido del del 1 de Marzo del 2022 al 31 de Diciembre del 2022.

Sheet Global Select Health Plan
M32: FALSE
B33: Nombre del asegurado titular : | C33: =+'INGRESO DE DATOS'!$D$15 -> Nombre del Cliente | K33: Deducibles | M33: PLAN A | N33: PLAN 1 | O33: PLAN 2 | P33: PLAN 3 | Q33: PLAN 4
K34: Dentro del país de residencia | M34: 2000 | N34: 3500 | O34: 5000 | P34: 10000 | Q34: 20000
B35: Agencia / Agente : | C35: =+'INGRESO DE DATOS'!$D$27 -> Nombre del Agente | K35: Fuera del país de residencia | M35: 2000 | N35: 3500 | O35: 5000 | P35: 10000 | Q35: 20000
K37: TARIFAS ANUALES
B38: Número de adultos en la póliza : | C38: =+'INGRESO DE DATOS'!$D$17 -> 0 | F38: Edad del asegurado titular : | G38: =+'INGRESO DE DATOS'!$D$19 -> 0 | H38: =VLOOKUP($C$38,Tablas!A1503:B1504,2,0) ->  | K38: Prima del asegurado titular : | M38: =IF('INGRESO DE DATOS'!$E$21=TRUE,(VLOOKUP($G$38,Tablas!$A$305:$G$371,3,TRUE))*0.95+(Tablas!$Q$2),(VLOOKUP($G$38,Tablas!$A$305:$G$371,3,TRUE)+(Tablas!$Q$2))) ->  | N38: =IF('INGRESO DE DATOS'!$E$21=TRUE,(VLOOKUP($G$38,Tablas!$A$305:$G$371,4,TRUE))*0.95+(Tablas!$Q$2),(VLOOKUP($G$38,Tablas!$A$305:$G$371,4,TRUE)+(Tablas!$Q$2))) ->  | O38: =IF('INGRESO DE DATOS'!$E$21=TRUE,(VLOOKUP($G$38,Tablas!$A$305:$G$371,5,TRUE))*0.95+(Tablas!$Q$2),(VLOOKUP($G$38,Tablas!$A$305:$G$371,5,TRUE)+(Tablas!$Q$2))) ->  | P38: =IF('INGRESO DE DATOS'!$E$21=TRUE,(VLOOKUP($G$38,Tablas!$A$305:$G$371,6,TRUE))*0.95+(Tablas!$Q$2),(VLOOKUP($G$38,Tablas!$A$305:$G$371,6,TRUE)+(Tablas!$Q$2))) ->  | Q38: =IF('INGRESO DE DATOS'!$E$21=TRUE,(VLOOKUP($G$38,Tablas!$A$305:$G$371,7,TRUE))*0.95+(Tablas!$Q$2),(VLOOKUP($G$38,Tablas!$A$305:$G$371,7,TRUE)+(Tablas!$Q$2))) -> 
K39: Prima del (de la) cónyuge: | M39: =IF('INGRESO DE DATOS'!$E$21=TRUE,(IF($C$38=1,0,(VLOOKUP($G$40,Tablas!$A$305:$G$371,3,TRUE))))*0.95+(IF($C$38=1,0,(Tablas!$Q$2))),(IF($C$38=1,0,(VLOOKUP($G$40,Tablas!$A$305:$G$371,3,TRUE)+(Tablas!$Q$2))))) ->  | N39: =IF('INGRESO DE DATOS'!$E$21=TRUE,(IF($C$38=1,0,(VLOOKUP($G$40,Tablas!$A$305:$G$371,4,TRUE))))*0.95+(IF($C$38=1,0,(Tablas!$Q$2))),(IF($C$38=1,0,(VLOOKUP($G$40,Tablas!$A$305:$G$371,4,TRUE)+(Tablas!$Q$2))))) ->  | O39: =IF('INGRESO DE DATOS'!$E$21=TRUE,(IF($C$38=1,0,(VLOOKUP($G$40,Tablas!$A$305:$G$371,5,TRUE))))*0.95+(IF($C$38=1,0,(Tablas!$Q$2))),(IF($C$38=1,0,(VLOOKUP($G$40,Tablas!$A$305:$G$371,5,TRUE)+(Tablas!$Q$2))))) ->  | P39: =IF('INGRESO DE DATOS'!$E$21=TRUE,(IF($C$38=1,0,(VLOOKUP($G$40,Tablas!$A$305:$G$371,6,TRUE))))*0.95+(IF($C$38=1,0,(Tablas!$Q$2))),(IF($C$38=1,0,(VLOOKUP($G$40,Tablas!$A$305:$G$371,6,TRUE)+(Tablas!$Q$2))))) ->  | Q39: =IF('INGRESO DE DATOS'!$E$21=TRUE,(IF($C$38=1,0,(VLOOKUP($G$40,Tablas!$A$305:$G$371,7,TRUE))))*0.95+(IF($C$38=1,0,(Tablas!$Q$2))),(IF($C$38=1,0,(VLOOKUP($G$40,Tablas!$A$305:$G$371,7,TRUE)+(Tablas!$Q$2))))) -> 
B40: Número de hijos en la póliza : | C40: =+'INGRESO DE DATOS'!$H$17 -> 0 | F40: Edad del (de la) cónyuge : | G40: =+'INGRESO DE DATOS'!$H$19 -> 0 | K40: Prima del (de los) Hijo (s) : | M40: =IF('INGRESO DE DATOS'!$E$21=TRUE,(IF($C$40=0,0,(VLOOKUP($C$40,Tablas!$A$372:$G$374,3,TRUE))))*0.95,(IF($C$40=0,0,(VLOOKUP($C$40,Tablas!$A$372:$G$374,3,TRUE))))) -> 0 | N40: =IF('INGRESO DE DATOS'!$E$21=TRUE,(IF($C$40=0,0,(VLOOKUP($C$40,Tablas!$A$372:$G$374,4,TRUE))))*0.95,(IF($C$40=0,0,(VLOOKUP($C$40,Tablas!$A$372:$G$374,4,TRUE))))) -> 0 | O40: =IF('INGRESO DE DATOS'!$E$21=TRUE,(IF($C$40=0,0,(VLOOKUP($C$40,Tablas!$A$372:$G$374,5,TRUE))))*0.95,(IF($C$40=0,0,(VLOOKUP($C$40,Tablas!$A$372:$G$374,5,TRUE))))) -> 0 | P40: =IF('INGRESO DE DATOS'!$E$21=TRUE,(IF($C$40=0,0,(VLOOKUP($C$40,Tablas!$A$372:$G$374,6,TRUE))))*0.95,(IF($C$40=0,0,(VLOOKUP($C$40,Tablas!$A$372:$G$374,6,TRUE))))) -> 0 | Q40: =IF('INGRESO DE DATOS'!$E$21=TRUE,(IF($C$40=0,0,(VLOOKUP($C$40,Tablas!$A$372:$G$374,7,TRUE))))*0.95,(IF($C$40=0,0,(VLOOKUP($C$40,Tablas!$A$372:$G$374,7,TRUE))))) -> 0
K41: TOTAL PRIMA NETA : | M41: =SUM(M38:M40) ->  | N41: =SUM(N38:N40) ->  | P41: =SUM(P38:P40) -> 
B42: FECHA DE COTIZACION : | C42: =NOW() -> 2022-02-24T10:52:43.520 | K42: Costo administrativo anual : | M42: 937.5 | N42: 937.5 | O42: 937.5 | P42: 937.5 | Q42: 937.5
K43: IVA (16%) : | M43: =SUM(M41:M42)*16% ->  | N43: =SUM(N41:N42)*16% ->  | P43: =SUM(P41:P42)*16% -> 
K44: =IF('INGRESO DE DATOS'!$E$21=TRUE,"Costo total, (-5% de descuento)","Gran total anual") -> Gran total anual | M44: =SUM(M41:M43) ->  | N44: =SUM(N41:N43) ->  | P44: =SUM(P41:P43) -> 
K46: TARIFAS SEMESTRALES
K47: Prima del asegurado titular : | M47: =M38*(1+Tablas!$K$4) ->  | N47: =N38*(1+Tablas!$K$4) ->  | O47: =O38*(1+Tablas!$K$4) ->  | P47: =P38*(1+Tablas!$K$4) ->  | Q47: =Q38*(1+Tablas!$K$4) -> 
K48: Prima del (de la) cónyuge: | M48: =M39*(1+Tablas!$K$4) ->  | N48: =N39*(1+Tablas!$K$4) ->  | O48: =O39*(1+Tablas!$K$4) ->  | P48: =P39*(1+Tablas!$K$4) ->  | Q48: =Q39*(1+Tablas!$K$4) -> 
K49: Prima del (de los) Hijo (s) : | M49: =M40*(1+Tablas!$K$4) -> 0 | N49: =N40*(1+Tablas!$K$4) -> 0 | O49: =O40*(1+Tablas!$K$4) -> 0 | P49: =P40*(1+Tablas!$K$4) -> 0 | Q49: =Q40*(1+Tablas!$K$4) -> 0
K50: TOTAL PRIMA NETA : | M50: =SUM(M47:M49) ->  | N50: =SUM(N47:N49) ->  | P50: =SUM(P47:P49) -> 
K51: Costo administrativo anual : | M51: 937.5 | N51: 937.5 | O51: 937.5 | P51: 937.5 | Q51: 937.5
K52: IVA (16%) : | M52: =SUM(M50:M51)*16% ->  | N52: =SUM(N50:N51)*16% ->  | P52: =SUM(P50:P51)*16% -> 
K53: TOTAL primera cuota : | M53: =((M50/2)+M51)*1.16 ->  | N53: =((N50/2)+N51)*1.16 -> 
K54: Valor segunda cuota : | M54: =M50/2*1.16 ->  | N54: =N50/2*1.16 -> 
K55: =IF('INGRESO DE DATOS'!$E$21=TRUE,"Costo total, (-5% de descuento)","Gran total anual") -> Gran total anual | M55: =+M53+M54 ->  | N55: =+N53+N54 ->  | P55: =+P53+P54 -> 
K57: TARIFAS TRIMESTRALES
K58: Prima del asegurado titular : | M58: =M38*(1+Tablas!$K$3) ->  | N58: =N38*(1+Tablas!$K$3) ->  | O58: =O38*(1+Tablas!$K$3) ->  | P58: =P38*(1+Tablas!$K$3) ->  | Q58: =Q38*(1+Tablas!$K$3) -> 
K59: Prima del (de la) cónyuge: | M59: =M39*(1+Tablas!$K$3) ->  | N59: =N39*(1+Tablas!$K$3) ->  | O59: =O39*(1+Tablas!$K$3) ->  | P59: =P39*(1+Tablas!$K$3) ->  | Q59: =Q39*(1+Tablas!$K$3) -> 
K60: Prima del (de los) Hijo (s) : | M60: =M40*(1+Tablas!$K$3) -> 0 | N60: =N40*(1+Tablas!$K$3) -> 0 | O60: =O40*(1+Tablas!$K$3) -> 0 | P60: =P40*(1+Tablas!$K$3) -> 0 | Q60: =Q40*(1+Tablas!$K$3) -> 0
K61: TOTAL PRIMA NETA : | M61: =SUM(M58:M60) ->  | N61: =SUM(N58:N60) ->  | P61: =SUM(P58:P60) -> 
K62: Costo administrativo anual : | M62: 937.5 | N62: 937.5 | O62: 937.5 | P62: 937.5 | Q62: 937.5
K63: IVA (16%) : | M63: =SUM(M61:M62)*16% ->  | N63: =SUM(N61:N62)*16% ->  | P63: =SUM(P61:P62)*16% -> 
K64: TOTAL primera cuota : | M64: =((M61/4)+M62)*1.16 ->  | N64: =((N61/4)+N62)*1.16 -> 
K65: Valor cuota trimestral 2 a 4: | M65: =M61/4*1.16 ->  | N65: =N61/4*1.16 -> 
K66: =IF('INGRESO DE DATOS'!$E$21=TRUE,"Costo total, (-5% de descuento)","Gran total anual") -> Gran total anual | M66: =M64+(M65*3) ->  | N66: =N64+(N65*3) ->  | O66: =O64+(O65*3) ->  | P66: =P64+(P65*3) -> 
K68: TARIFAS MENSUALES
K69: Prima del asegurado titular : | M69: =M38*(1+Tablas!$K$2) ->  | N69: =N38*(1+Tablas!$K$2) ->  | O69: =O38*(1+Tablas!$K$2) ->  | P69: =P38*(1+Tablas!$K$2) ->  | Q69: =Q38*(1+Tablas!$K$2) -> 
K70: Prima del (de la) cónyuge: | M70: =M39*(1+Tablas!$K$2) ->  | N70: =N39*(1+Tablas!$K$2) ->  | O70: =O39*(1+Tablas!$K$2) ->  | P70: =P39*(1+Tablas!$K$2) ->  | Q70: =Q39*(1+Tablas!$K$2) -> 
K71: Prima del (de los) Hijo (s) : | M71: =M40*(1+Tablas!$K$2) -> 0 | N71: =N40*(1+Tablas!$K$2) -> 0 | O71: =O40*(1+Tablas!$K$2) -> 0 | P71: =P40*(1+Tablas!$K$2) -> 0 | Q71: =Q40*(1+Tablas!$K$2) -> 0
K72: TOTAL PRIMA NETA : | M72: =SUM(M69:M71) ->  | N72: =SUM(N69:N71) ->  | P72: =SUM(P69:P71) -> 
K73: Costo administrativo anual : | M73: 937.5 | N73: 937.5 | O73: 937.5 | P73: 937.5 | Q73: 937.5
K74: IVA (16%) : | M74: =SUM(M72:M73)*16% ->  | N74: =SUM(N72:N73)*16% ->  | P74: =SUM(P72:P73)*16% -> 
K75: TOTAL primera cuota : | M75: =((M72/12)+M73)*1.16 ->  | N75: =((N72/12)+N73)*1.16 -> 
K76: Valor cuota mensual 2 a 12 : | M76: =M72/12*1.16 ->  | N76: =N72/12*1.16 -> 
K77: =IF('INGRESO DE DATOS'!$E$21=TRUE,"Costo total, (-5% de descuento)","Gran total anual") -> Gran total anual | M77: =M75+(M76*11) ->  | N77: =N75+(N76*11) ->  | O77: =O75+(O76*11) ->  | P77: =P75+(P76*11) -> 
B80: Tarifas en MXN$ - Válidas desde el 01 de marzo de 2022
B81: La presente cotización es de carácter informativo y no constituye el monto de la prima definitiva ni las condiciones de la misma. La emisión de la póliza está sujeta a valoración del riesgo y/o cambio en la tarifa por parte del área de Suscripción de Bupa y puede tener modificaciones por lo que no expresa compromiso legal para la cobertura del seguro. Este cotizador es válido del del 1 de Marzo del 2022 al 31 de Diciembre del 2022.

Sheet Global Premier Health Plan
B36: Nombre del asegurado titular : | C36: =+'INGRESO DE DATOS'!$D$15 -> Nombre del Cliente | L36: Deducibles | N36: PLAN A | O36: PLAN 1 | P36: PLAN 2 | Q36: PLAN 3
L37: Dentro del país de residencia | N37: 1000 | O37: 2000 | P37: 5000 | Q37: 10000
B38: Agencia / Agente : | C38: =+'INGRESO DE DATOS'!$D$27 -> Nombre del Agente | L38: Fuera del país de residencia | N38: 1000 | O38: 2000 | P38: 5000 | Q38: 10000
C40: Número de adultos en la póliza : | D40: =+'INGRESO DE DATOS'!$D$17 -> 0 | F40: Edad del asegurado titular : | G40: =+'INGRESO DE DATOS'!$D$19 -> 0 | I40: =VLOOKUP($D$40,Tablas!A1503:B1504,2,0) ->  | L40: TARIFAS ANUALES
L41: Prima del asegurado titular : | N41: =IF('INGRESO DE DATOS'!$E$21=TRUE,(VLOOKUP($G$40,Tablas!$A$155:$G$221,3,TRUE))*0.95+(Tablas!$Q$2),VLOOKUP($G$40,Tablas!$A$155:$G$221,3,TRUE)+(Tablas!$Q$2)) ->  | O41: =IF('INGRESO DE DATOS'!$E$21=TRUE,(VLOOKUP($G$40,Tablas!$A$155:$G$221,4,TRUE))*0.95+(Tablas!$Q$2),VLOOKUP($G$40,Tablas!$A$155:$G$221,4,TRUE)+(Tablas!$Q$2)) ->  | P41: =IF('INGRESO DE DATOS'!$E$21=TRUE,(VLOOKUP($G$40,Tablas!$A$155:$G$221,5,TRUE))*0.95+(Tablas!$Q$2),VLOOKUP($G$40,Tablas!$A$155:$G$221,5,TRUE)+(Tablas!$Q$2)) ->  | Q41: =IF('INGRESO DE DATOS'!$E$21=TRUE,(VLOOKUP($G$40,Tablas!$A$155:$G$221,6,TRUE))*0.95+(Tablas!$Q$2),VLOOKUP($G$40,Tablas!$A$155:$G$221,6,TRUE)+(Tablas!$Q$2)) -> 
C42: Número de hijos en la póliza : | D42: =+'INGRESO DE DATOS'!$H$17 -> 0 | F42: Edad del (de la) cónyuge : | G42: =+'INGRESO DE DATOS'!$H$19 -> 0 | L42: Prima del (de la) cónyuge: | N42: =IF('INGRESO DE DATOS'!$E$21=TRUE,(IF($D$40=1,0,(VLOOKUP($G$42,Tablas!$A$155:$G$221,3,TRUE))))*0.95+(IF($D$40=1,0,(Tablas!$Q$2))),IF($D$40=1,0,(VLOOKUP($G$42,Tablas!$A$155:$G$221,3,TRUE)+(Tablas!$Q$2)))) ->  | O42: =IF('INGRESO DE DATOS'!$E$21=TRUE,(IF($D$40=1,0,(VLOOKUP($G$42,Tablas!$A$155:$G$221,4,TRUE))))*0.95+(IF($D$40=1,0,(Tablas!$Q$2))),IF($D$40=1,0,(VLOOKUP($G$42,Tablas!$A$155:$G$221,4,TRUE)+(Tablas!$Q$2)))) ->  | P42: =IF('INGRESO DE DATOS'!$E$21=TRUE,(IF($D$40=1,0,(VLOOKUP($G$42,Tablas!$A$155:$G$221,5,TRUE))))*0.95+(IF($D$40=1,0,(Tablas!$Q$2))),IF($D$40=1,0,(VLOOKUP($G$42,Tablas!$A$155:$G$221,5,TRUE)+(Tablas!$Q$2)))) ->  | Q42: =IF('INGRESO DE DATOS'!$E$21=TRUE,(IF($D$40=1,0,(VLOOKUP($G$42,Tablas!$A$155:$G$221,6,TRUE))))*0.95+(IF($D$40=1,0,(Tablas!$Q$2))),IF($D$40=1,0,(VLOOKUP($G$42,Tablas!$A$155:$G$221,6,TRUE)+(Tablas!$Q$2)))) -> 
L43: Prima del (de los) Hijo (s) : | N43: =IF('INGRESO DE DATOS'!$E$21=TRUE,(IF($D$42=0,0,(VLOOKUP($D$42,Tablas!$A$222:$G$224,3,TRUE))))*0.95,(IF($D$42=0,0,(VLOOKUP($D$42,Tablas!$A$222:$G$224,3,TRUE))))) -> 0 | O43: =IF('INGRESO DE DATOS'!$E$21=TRUE,(IF($D$42=0,0,(VLOOKUP($D$42,Tablas!$A$222:$G$224,4,TRUE))))*0.95,(IF($D$42=0,0,(VLOOKUP($D$42,Tablas!$A$222:$G$224,4,TRUE))))) -> 0 | P43: =IF('INGRESO DE DATOS'!$E$21=TRUE,(IF($D$42=0,0,(VLOOKUP($D$42,Tablas!$A$222:$G$224,5,TRUE))))*0.95,(IF($D$42=0,0,(VLOOKUP($D$42,Tablas!$A$222:$G$224,5,TRUE))))) -> 0 | Q43: =IF('INGRESO DE DATOS'!$E$21=TRUE,(IF($D$42=0,0,(VLOOKUP($D$42,Tablas!$A$222:$G$224,6,TRUE))))*0.95,(IF($D$42=0,0,(VLOOKUP($D$42,Tablas!$A$222:$G$224,6,TRUE))))) -> 0
C44: FECHA DE COTIZACION : | E44: =NOW() -> 2022-02-24T10:52:43.520 | L44: TOTAL PRIMA NETA : | N44: =SUM(N41:N43) ->  | O44: =SUM(O41:O43) ->  | Q44: =SUM(Q41:Q43) -> 
E45: FALSE | L45: Costo administrativo anual : | N45: 937.5 | O45: 937.5 | P45: 937.5 | Q45: 937.5
L46: IVA (16%) : | N46: =SUM(N44:N45)*16% ->  | O46: =SUM(O44:O45)*16% -> 
L47: =IF('INGRESO DE DATOS'!$E$21=TRUE,"Costo total, (-5% de descuento)","Gran total anual") -> Gran total anual | N47: =SUM(N44:N46) ->  | O47: =SUM(O44:O46) -> 
L49: TARIFAS SEMESTRALES
L50: Prima del asegurado titular : | N50: =N41*(1+Tablas!$K$4) ->  | O50: =O41*(1+Tablas!$K$4) ->  | P50: =P41*(1+Tablas!$K$4) ->  | Q50: =Q41*(1+Tablas!$K$4) -> 
L51: Prima del (de la) cónyuge: | N51: =N42*(1+Tablas!$K$4) ->  | O51: =O42*(1+Tablas!$K$4) ->  | P51: =P42*(1+Tablas!$K$4) ->  | Q51: =Q42*(1+Tablas!$K$4) -> 
L52: Prima del (de los) Hijo (s) : | N52: =N43*(1+Tablas!$K$4) -> 0 | O52: =O43*(1+Tablas!$K$4) -> 0 | P52: =P43*(1+Tablas!$K$4) -> 0 | Q52: =Q43*(1+Tablas!$K$4) -> 0
L53: TOTAL PRIMA NETA : | N53: =SUM(N50:N52) ->  | O53: =SUM(O50:O52) ->  | P53: =SUM(P50:P52) -> 
L54: Costo administrativo anual : | N54: 937.5 | O54: 937.5 | P54: 937.5 | Q54: 937.5
L55: IVA (16%) : | N55: =SUM(N53:N54)*16% ->  | O55: =SUM(O53:O54)*16% -> 
L56: TOTAL primera cuota : | N56: =((N53/2)+N54)*1.16 ->  | O56: =((O53/2)+O54)*1.16 ->  | P56: =((P53/2)+P54)*1.16 -> 
L57: Valor segunda cuota : | N57: =N53/2*1.16 ->  | O57: =O53/2*1.16 ->  | P57: =P53/2*1.16 -> 
L58: =IF('INGRESO DE DATOS'!$E$21=TRUE,"Costo total, (-5% de descuento)","Gran total anual") -> Gran total anual | N58: =N56+N57 ->  | O58: =O56+O57 ->  | P58: =P56+P57 ->  | Q58: =Q56+Q57 -> 
L60: TARIFAS TRIMESTRALES
L61: Prima del asegurado titular : | N61: =N41*(1+Tablas!$K$3) ->  | O61: =O41*(1+Tablas!$K$3) ->  | P61: =P41*(1+Tablas!$K$3) ->  | Q61: =Q41*(1+Tablas!$K$3) -> 
L62: Prima del (de la) cónyuge: | N62: =N42*(1+Tablas!$K$3) ->  | O62: =O42*(1+Tablas!$K$3) ->  | P62: =P42*(1+Tablas!$K$3) ->  | Q62: =Q42*(1+Tablas!$K$3) -> 
L63: Prima del (de los) Hijo (s) : | N63: =N43*(1+Tablas!$K$3) -> 0 | O63: =O43*(1+Tablas!$K$3) -> 0 | P63: =P43*(1+Tablas!$K$3) -> 0 | Q63: =Q43*(1+Tablas!$K$3) -> 0
L64: TOTAL PRIMA NETA : | N64: =SUM(N61:N63) ->  | O64: =SUM(O61:O63) ->  | P64: =SUM(P61:P63) ->  | Q64: =SUM(Q61:Q63) -> 
L65: Costo administrativo anual : | N65: 937.5 | O65: 937.5 | P65: 937.5 | Q65: 937.5
L66: IVA (16%) : | N66: =SUM(N64:N65)*16% ->  | O66: =SUM(O64:O65)*16% -> 
L67: TOTAL primera cuota : | N67: =((N64/4)+N65)*1.16 ->  | O67: =((O64/4)+O65)*1.16 -> 
L68: Valor cuota trimestral 2 a 4: | N68: =N64/4*1.16 ->  | O68: =O64/4*1.16 -> 
L69: =IF('INGRESO DE DATOS'!$E$21=TRUE,"Costo total, (-5% de descuento)","Gran total anual") -> Gran total anual | N69: =N67+(N68*3) ->  | O69: =O67+(O68*3) ->  | P69: =P67+(P68*3) ->  | Q69: =Q67+(Q68*3) -> 
L71: TARIFAS MENSUALES
L72: Prima del asegurado titular : | N72: =N41*(1+Tablas!$K$2) ->  | O72: =O41*(1+Tablas!$K$2) ->  | P72: =P41*(1+Tablas!$K$2) ->  | Q72: =Q41*(1+Tablas!$K$2) -> 
L73: Prima del (de la) cónyuge: | N73: =N42*(1+Tablas!$K$2) ->  | O73: =O42*(1+Tablas!$K$2) ->  | P73: =P42*(1+Tablas!$K$2) ->  | Q73: =Q42*(1+Tablas!$K$2) -> 
L74: Prima del (de los) Hijo (s) : | N74: =N43*(1+Tablas!$K$2) -> 0 | O74: =O43*(1+Tablas!$K$2) -> 0 | P74: =P43*(1+Tablas!$K$2) -> 0 | Q74: =Q43*(1+Tablas!$K$2) -> 0
L75: TOTAL PRIMA NETA : | N75: =SUM(N72:N74) ->  | O75: =SUM(O72:O74) -> 
L76: Costo administrativo anual : | N76: 937.5 | O76: 937.5 | P76: 937.5 | Q76: 937.5
L77: IVA (16%) : | N77: =SUM(N75:N76)*16% ->  | O77: =SUM(O75:O76)*16% -> 
L78: TOTAL primera cuota : | N78: =((N75/12)+N76)*1.16 ->  | O78: =((O75/12)+O76)*1.16 -> 
L79: Valor cuota mensual 2 a 12 : | N79: =N75/12*1.16 ->  | O79: =O75/12*1.16 -> 
L80: =IF('INGRESO DE DATOS'!$E$21=TRUE,"Costo total, (-5% de descuento)","Gran total anual") -> Gran total anual | N80: =N78+(N79*11) ->  | O80: =O78+(O79*11) ->  | P80: =P78+(P79*11) ->  | Q80: =Q78+(Q79*11) -> 
B82: Tarifas en MXN$ - Válidas desde el 01 de marzo de 2022
B83: La presente cotización es de carácter informativo y no constituye el monto de la prima definitiva ni las condiciones de la misma. La emisión de la póliza está sujeta a valoración del riesgo y/o cambio en la tarifa por parte del área de Suscripción de Bupa y puede tener modificaciones por lo que no expresa compromiso legal para la cobertura del seguro. Este cotizador es válido del del 1 de Marzo del 2022 al 31 de Diciembre del 2022.

Sheet Global Elite Health Plan
B26: Nombre del asegurado titular : | C26: =+'INGRESO DE DATOS'!$D$15 -> Nombre del Cliente | K26: Deducibles | M26: PLAN 1 | N26: PLAN 2 | O26: PLAN 3 | P26: PLAN 4 | Q26: PLAN 5
K27: Dentro del país de residencia | M27: 1000 | N27: 2000 | O27: 3500 | P27: 5000 | Q27: 10000
B28: Agencia / Agente : | C28: =+'INGRESO DE DATOS'!$D$27 -> Nombre del Agente | K28: Fuera del país de residencia | M28: 1000 | N28: 2000 | O28: 3500 | P28: 5000 | Q28: 10000
B30: Número de adultos en la póliza : | D30: =+'INGRESO DE DATOS'!$D$17 -> 0 | E30: Edad del asegurado titular : | G30: =+'INGRESO DE DATOS'!$D$19 -> 0 | I30: =VLOOKUP($D$30,Tablas!A1503:B1504,2,0) ->  | K30: TARIFAS ANUALES
K31: Prima del asegurado titular : | M31: =IF('INGRESO DE DATOS'!$E$21=TRUE,(VLOOKUP($G$30,Tablas!$A$6:$G$72,3,TRUE))*0.95+(Tablas!$Q$2),(VLOOKUP($G$30,Tablas!$A$6:$G$72,3,TRUE)+(Tablas!$Q$2))) ->  | N31: =IF('INGRESO DE DATOS'!$E$21=TRUE,(VLOOKUP($G$30,Tablas!$A$6:$G$72,4,TRUE)+(Tablas!$Q$2))*0.95,(VLOOKUP($G$30,Tablas!$A$6:$G$72,4,TRUE)+(Tablas!$Q$2))) ->  | O31: =IF('INGRESO DE DATOS'!$E$21=TRUE,(VLOOKUP($G$30,Tablas!$A$6:$G$72,5,TRUE)+(Tablas!$Q$2))*0.95,(VLOOKUP($G$30,Tablas!$A$6:$G$72,5,TRUE)+(Tablas!$Q$2))) ->  | P31: =IF('INGRESO DE DATOS'!$E$21=TRUE,(VLOOKUP($G$30,Tablas!$A$6:$G$72,6,TRUE)+(Tablas!$Q$2))*0.95,(VLOOKUP($G$30,Tablas!$A$6:$G$72,6,TRUE)+(Tablas!$Q$2))) ->  | Q31: =IF('INGRESO DE DATOS'!$E$21=TRUE,(VLOOKUP($G$30,Tablas!$A$6:$G$72,7,TRUE)+(Tablas!$Q$2))*0.95,(VLOOKUP($G$30,Tablas!$A$6:$G$72,7,TRUE)+(Tablas!$Q$2))) -> 
B32: Número de hijos en la póliza : | D32: =+'INGRESO DE DATOS'!$H$17 -> 0 | E32: Edad del (de la) cónyuge : | G32: =+'INGRESO DE DATOS'!$H$19 -> 0 | K32: Prima del (de la) cónyuge: | M32: =IF('INGRESO DE DATOS'!$E$21=TRUE,(IF($D$30=1,0,(VLOOKUP($G$32,Tablas!$A$6:$G$72,3,TRUE))))*0.95+(IF($D$30=1,0,(Tablas!$Q$2))),(IF($D$30=1,0,(VLOOKUP($G$32,Tablas!$A$6:$G$72,3,TRUE)+(Tablas!$Q$2))))) ->  | N32: =IF('INGRESO DE DATOS'!$E$21=TRUE,(IF($D$30=1,0,(VLOOKUP($G$32,Tablas!$A$6:$G$72,4,TRUE))))*0.95+(IF($D$30=1,0,(Tablas!$Q$2))),(IF($D$30=1,0,(VLOOKUP($G$32,Tablas!$A$6:$G$72,4,TRUE)+(Tablas!$Q$2))))) ->  | O32: =IF('INGRESO DE DATOS'!$E$21=TRUE,(IF($D$30=1,0,(VLOOKUP($G$32,Tablas!$A$6:$G$72,5,TRUE))))*0.95+(IF($D$30=1,0,(Tablas!$Q$2))),(IF($D$30=1,0,(VLOOKUP($G$32,Tablas!$A$6:$G$72,5,TRUE)+(Tablas!$Q$2))))) ->  | P32: =IF('INGRESO DE DATOS'!$E$21=TRUE,(IF($D$30=1,0,(VLOOKUP($G$32,Tablas!$A$6:$G$72,6,TRUE))))*0.95+(IF($D$30=1,0,(Tablas!$Q$2))),(IF($D$30=1,0,(VLOOKUP($G$32,Tablas!$A$6:$G$72,6,TRUE)+(Tablas!$Q$2))))) ->  | Q32: =IF('INGRESO DE DATOS'!$E$21=TRUE,(IF($D$30=1,0,(VLOOKUP($G$32,Tablas!$A$6:$G$72,7,TRUE))))*0.95+(IF($D$30=1,0,(Tablas!$Q$2))),(IF($D$30=1,0,(VLOOKUP($G$32,Tablas!$A$6:$G$72,7,TRUE)+(Tablas!$Q$2))))) -> 
K33: Prima del (de los) Hijo(s) : | M33: =IF('INGRESO DE DATOS'!$E$21=TRUE,IF($D$32=0,0,(VLOOKUP($D$32,Tablas!$A$73:$G$75,3,TRUE)))*0.95,IF($D$32=0,0,(VLOOKUP($D$32,Tablas!$A$73:$G$75,3,TRUE)))) -> 0 | N33: =IF('INGRESO DE DATOS'!$E$21=TRUE,IF($D$32=0,0,(VLOOKUP($D$32,Tablas!$A$73:$G$75,4,TRUE)))*0.95,IF($D$32=0,0,(VLOOKUP($D$32,Tablas!$A$73:$G$75,4,TRUE)))) -> 0 | O33: =IF('INGRESO DE DATOS'!$E$21=TRUE,IF($D$32=0,0,(VLOOKUP($D$32,Tablas!$A$73:$G$75,5,TRUE)))*0.95,IF($D$32=0,0,(VLOOKUP($D$32,Tablas!$A$73:$G$75,5,TRUE)))) -> 0 | P33: =IF('INGRESO DE DATOS'!$E$21=TRUE,IF($D$32=0,0,(VLOOKUP($D$32,Tablas!$A$73:$G$75,6,TRUE)))*0.95,IF($D$32=0,0,(VLOOKUP($D$32,Tablas!$A$73:$G$75,6,TRUE)))) -> 0 | Q33: =IF('INGRESO DE DATOS'!$E$21=TRUE,IF($D$32=0,0,(VLOOKUP($D$32,Tablas!$A$73:$G$75,7,TRUE)))*0.95,IF($D$32=0,0,(VLOOKUP($D$32,Tablas!$A$73:$G$75,7,TRUE)))) -> 0
C34: FECHA DE COTIZACION : | F34: =NOW() -> 2022-02-24T10:52:43.520 | K34: TOTAL PRIMA NETA : | M34: =SUM(M31:M33) ->  | N34: =SUM(N31:N33) -> 
F35: FALSE | K35: Costo administrativo anual : | M35: 937.5 | N35: 937.5 | O35: 937.5 | P35: 937.5 | Q35: 937.5
K36: IVA (16%) : | M36: =SUM(M34:M35)*16% ->  | N36: =SUM(N34:N35)*16% ->  | O36: =SUM(O34:O35)*16% -> 
K37: =IF('INGRESO DE DATOS'!$E$21=TRUE,"Costo total, (-5% de descuento)","Gran total anual") -> Gran total anual | M37: =SUM(M34:M36) ->  | N37: =SUM(N34:N36) ->  | O37: =SUM(O34:O36) -> 
K39: TARIFAS SEMESTRALES
K40: Prima del asegurado titular : | M40: =M31*(1+Tablas!$K$4) ->  | N40: =N31*(1+Tablas!$K$4) ->  | O40: =O31*(1+Tablas!$K$4) ->  | P40: =P31*(1+Tablas!$K$4) ->  | Q40: =Q31*(1+Tablas!$K$4) -> 
K41: Prima del (de la) cónyuge: | M41: =M32*(1+Tablas!$K$4) ->  | N41: =N32*(1+Tablas!$K$4) ->  | O41: =O32*(1+Tablas!$K$4) ->  | P41: =P32*(1+Tablas!$K$4) ->  | Q41: =Q32*(1+Tablas!$K$4) -> 
K42: Prima del (de los) Hijo (s) : | M42: =M33*(1+Tablas!$K$4) -> 0 | N42: =N33*(1+Tablas!$K$4) -> 0 | O42: =O33*(1+Tablas!$K$4) -> 0 | P42: =P33*(1+Tablas!$K$4) -> 0 | Q42: =Q33*(1+Tablas!$K$4) -> 0
K43: TOTAL PRIMA NETA : | M43: =SUM(M40:M42) ->  | N43: =SUM(N40:N42) -> 
K44: Costo administrativo anual : | M44: 937.5 | N44: 937.5 | O44: 937.5 | P44: 937.5 | Q44: 937.5
K45: IVA (16%) : | M45: =SUM(M43:M44)*16% ->  | N45: =SUM(N43:N44)*16% -> 
K46: TOTAL primera cuota : | M46: =((M43/2)+M44)*1.16 ->  | N46: =((N43/2)+N44)*1.16 -> 
K47: Valor segunda cuota : | M47: =M43/2*1.16 ->  | N47: =N43/2*1.16 -> 
K48: =IF('INGRESO DE DATOS'!$E$21=TRUE,"Costo total, (-5% de descuento)","Gran total anual") -> Gran total anual | M48: =M46+M47 ->  | N48: =N46+N47 ->  | P48: =P46+P47 -> 
K50: TARIFAS TRIMESTRALES
K51: Prima del asegurado titular : | M51: =M31*(1+Tablas!$K$3) ->  | N51: =N31*(1+Tablas!$K$3) ->  | O51: =O31*(1+Tablas!$K$3) ->  | P51: =P31*(1+Tablas!$K$3) ->  | Q51: =Q31*(1+Tablas!$K$3) -> 
K52: Prima del (de la) cónyuge: | M52: =M32*(1+Tablas!$K$3) ->  | N52: =N32*(1+Tablas!$K$3) ->  | O52: =O32*(1+Tablas!$K$3) ->  | P52: =P32*(1+Tablas!$K$3) ->  | Q52: =Q32*(1+Tablas!$K$3) -> 
K53: Prima del (de los) Hijo (s) : | M53: =M33*(1+Tablas!$K$3) -> 0 | N53: =N33*(1+Tablas!$K$3) -> 0 | O53: =O33*(1+Tablas!$K$3) -> 0 | P53: =P33*(1+Tablas!$K$3) -> 0 | Q53: =Q33*(1+Tablas!$K$3) -> 0
K54: TOTAL PRIMA NETA : | M54: =SUM(M51:M53) ->  | N54: =SUM(N51:N53) -> 
K55: Costo administrativo anual : | M55: 937.5 | N55: 937.5 | O55: 937.5 | P55: 937.5 | Q55: 937.5
K56: IVA (16%) : | M56: =SUM(M54:M55)*16% ->  | N56: =SUM(N54:N55)*16% -> 
K57: TOTAL primera cuota : | M57: =((M54/4)+M55)*1.16 ->  | N57: =((N54/4)+N55)*1.16 -> 
K58: Valor cuota trimestral 2 a 4: | M58: =M54/4*1.16 ->  | N58: =N54/4*1.16 -> 
K59: =IF('INGRESO DE DATOS'!$E$21=TRUE,"Costo total, (-5% de descuento)","Gran total anual") -> Gran total anual | M59: =M57+(M58*3) ->  | N59: =N57+(N58*3) -> 
K61: TARIFAS MENSUALES
K62: Prima del asegurado titular : | M62: =M31*(1+Tablas!$K$2) ->  | N62: =N31*(1+Tablas!$K$2) ->  | O62: =O31*(1+Tablas!$K$2) ->  | P62: =P31*(1+Tablas!$K$2) ->  | Q62: =Q31*(1+Tablas!$K$2) -> 
K63: Prima del (de la) cónyuge: | M63: =M32*(1+Tablas!$K$2) ->  | N63: =N32*(1+Tablas!$K$2) ->  | O63: =O32*(1+Tablas!$K$2) ->  | P63: =P32*(1+Tablas!$K$2) ->  | Q63: =Q32*(1+Tablas!$K$2) -> 
K64: Prima del (de los) Hijo (s) : | M64: =M33*(1+Tablas!$K$2) -> 0 | N64: =N33*(1+Tablas!$K$2) -> 0 | O64: =O33*(1+Tablas!$K$2) -> 0 | P64: =P33*(1+Tablas!$K$2) -> 0 | Q64: =Q33*(1+Tablas!$K$2) -> 0
K65: TOTAL PRIMA NETA : | M65: =SUM(M62:M64) ->  | N65: =SUM(N62:N64) -> 
K66: Costo administrativo anual : | M66: 937.5 | N66: 937.5 | O66: 937.5 | P66: 937.5 | Q66: 937.5
K67: IVA (16%) : | M67: =SUM(M65:M66)*16% ->  | N67: =SUM(N65:N66)*16% -> 
K68: TOTAL primera cuota : | M68: =((M65/12)+M66)*1.16 ->  | N68: =((N65/12)+N66)*1.16 -> 
K69: Valor cuota mensual 2 a 12 : | M69: =M65/12*1.16 ->  | N69: =N65/12*1.16 -> 
K70: =IF('INGRESO DE DATOS'!$E$21=TRUE,"Costo total, (-5% de descuento)","Gran total anual") -> Gran total anual | M70: =M68+(M69*11) ->  | N70: =N68+(N69*11) ->  | O70: =O68+(O69*11) ->  | P70: =P68+(P69*11) ->  | Q70: =Q68+(Q69*11) -> 
B72: Tarifas en MXN$ - Válidas desde el 01 de marzo de 2022
B73: La presente cotización es de carácter informativo y no constituye el monto de la prima definitiva ni las condiciones de la misma. La emisión de la póliza está sujeta a valoración del riesgo y/o cambio en la tarifa por parte del área de Suscripción de Bupa y puede tener modificaciones por lo que no expresa compromiso legal para la cobertura del seguro. Este cotizador es válido del del 1 de Marzo del 2022 al 31 de Diciembre del 2022.

Sheet Global Ultimate Health Plan
N19: FALSE
B20: Nombre del asegurado titular : | C20: =+'INGRESO DE DATOS'!$D$15 -> Nombre del Cliente | L20: Deducibles | N20: PLAN 1 | O20: PLAN 2 | P20: PLAN 3
L21: Dentro del país de residencia | N21: 0 | O21: 1000 | P21: 2000
B22: Agencia / Agente : | C22: =+'INGRESO DE DATOS'!$D$27 -> Nombre del Agente | L22: Fuera del país de residencia | N22: 0 | O22: 1000 | P22: 2000
B24: Número de adultos en la póliza : | D24: =+'INGRESO DE DATOS'!$D$17 -> 0 | E24: Edad del asegurado titular : | G24: =+'INGRESO DE DATOS'!$D$19 -> 0 | H24: =VLOOKUP($D$24,Tablas!A1503:B1504,2,0) ->  | L24: TARIFAS ANUALES
L25: Prima del asegurado titular : | N25: =IF('INGRESO DE DATOS'!$E$21=TRUE,(VLOOKUP($G$24,Tablas!$A$1205:$G$1271,3,TRUE))*0.95+(Tablas!$Q$2),(VLOOKUP($G$24,Tablas!$A$1205:$G$1271,3,TRUE)+(Tablas!$Q$2))) ->  | O25: =IF('INGRESO DE DATOS'!$E$21=TRUE,(VLOOKUP($G$24,Tablas!$A$1205:$G$1271,4,TRUE))*0.95+(Tablas!$Q$2),(VLOOKUP($G$24,Tablas!$A$1205:$G$1271,4,TRUE)+(Tablas!$Q$2))) ->  | P25: =IF('INGRESO DE DATOS'!$E$21=TRUE,(VLOOKUP($G$24,Tablas!$A$1205:$G$1271,5,TRUE))*0.95+(Tablas!$Q$2),(VLOOKUP($G$24,Tablas!$A$1205:$G$1271,5,TRUE)+(Tablas!$Q$2))) -> 
B26: Número de hijos en la póliza : | D26: =+'INGRESO DE DATOS'!$H$17 -> 0 | E26: Edad del (de la) cónyuge : | G26: =+'INGRESO DE DATOS'!$H$19 -> 0 | L26: Prima del (de la) cónyuge: | N26: =IF('INGRESO DE DATOS'!$E$21=TRUE,(IF($D$24=1,0,(VLOOKUP($G$26,Tablas!$A$1205:$G$1271,3,TRUE))))*0.95+(IF($D$24=1,0,(Tablas!$Q$2))),(IF($D$24=1,0,(VLOOKUP($G$26,Tablas!$A$1205:$G$1271,3,TRUE)+(Tablas!$Q$2))))) ->  | O26: =IF('INGRESO DE DATOS'!$E$21=TRUE,(IF($D$24=1,0,(VLOOKUP($G$26,Tablas!$A$1205:$G$1271,4,TRUE))))*0.95+(IF($D$24=1,0,(Tablas!$Q$2))),(IF($D$24=1,0,(VLOOKUP($G$26,Tablas!$A$1205:$G$1271,4,TRUE)+(Tablas!$Q$2))))) ->  | P26: =IF('INGRESO DE DATOS'!$E$21=TRUE,(IF($D$24=1,0,(VLOOKUP($G$26,Tablas!$A$1205:$G$1271,5,TRUE))))*0.95+(IF($D$24=1,0,(Tablas!$Q$2))),(IF($D$24=1,0,(VLOOKUP($G$26,Tablas!$A$1205:$G$1271,5,TRUE)+(Tablas!$Q$2))))) -> 
L27: Prima del (de los) Hijo (s) : | N27: =IF('INGRESO DE DATOS'!$E$21=TRUE,IF($D$26=0,0,(VLOOKUP($D$26,Tablas!$A$1272:$G$1274,3,TRUE)))*0.95,IF($D$26=0,0,(VLOOKUP($D$26,Tablas!$A$1272:$G$1274,3,TRUE)))) -> 0 | O27: =IF('INGRESO DE DATOS'!$E$21=TRUE,IF($D$26=0,0,(VLOOKUP($D$26,Tablas!$A$1272:$G$1274,4,TRUE)))*0.95,IF($D$26=0,0,(VLOOKUP($D$26,Tablas!$A$1272:$G$1274,4,TRUE)))) -> 0 | P27: =IF('INGRESO DE DATOS'!$E$21=TRUE,IF($D$26=0,0,(VLOOKUP($D$26,Tablas!$A$1272:$G$1274,5,TRUE)))*0.95,IF($D$26=0,0,(VLOOKUP($D$26,Tablas!$A$1272:$G$1274,5,TRUE)))) -> 0
E28: FECHA DE COTIZACION : | L28: TOTAL PRIMA NETA : | N28: =SUM(N25:N27) ->  | O28: =SUM(O25:O27) -> 
E29: =NOW() -> 2022-02-24T10:52:43.520 | L29: Costo administrativo anual : | N29: 937.5 | O29: 937.5 | P29: 937.5
L30: IVA (16%) : | N30: =+N28*16% ->  | O30: =+O28*16% ->  | P30: =+P28*16% -> 
L31: =IF('INGRESO DE DATOS'!$E$21=TRUE,"Costo total, (-5% de descuento)","Gran total anual") -> Gran total anual | N31: =SUM(N28:N30) + N29*0.16 ->  | O31: =SUM(O28:O30) + O29*0.16 -> 
L33: TARIFAS SEMESTRALES
L34: Prima del asegurado titular : | N34: =N25*(1+Tablas!$K$4) ->  | O34: =O25*(1+Tablas!$K$4) ->  | P34: =P25*(1+Tablas!$K$4) -> 
L35: Prima del (de la) cónyuge: | N35: =N26*(1+Tablas!$K$4) ->  | O35: =O26*(1+Tablas!$K$4) ->  | P35: =P26*(1+Tablas!$K$4) -> 
L36: Prima del (de los) Hijo (s) : | N36: =N27*(1+Tablas!$K$4) -> 0 | O36: =O27*(1+Tablas!$K$4) -> 0 | P36: =P27*(1+Tablas!$K$4) -> 0
L37: TOTAL PRIMA NETA : | N37: =SUM(N34:N36) ->  | O37: =SUM(O34:O36) -> 
L38: Costo administrativo anual : | N38: 937.5 | O38: 937.5 | P38: 937.5
L39: IVA (16%) : | N39: =SUM(N37:N38)*16% ->  | O39: =SUM(O37:O38)*16% -> 
L40: TOTAL primera cuota : | N40: =((N37/2)+N38)*1.16 ->  | O40: =((O37/2)+O38)*1.16 -> 
L41: Valor segunda cuota : | N41: =N37/2*1.16 ->  | O41: =O37/2*1.16 -> 
L42: =IF('INGRESO DE DATOS'!$E$21=TRUE,"Costo total, (-5% de descuento)","Gran total anual") -> Gran total anual | N42: =N40+N41 ->  | O42: =O40+O41 -> 
L44: TARIFAS TRIMESTRALES
L45: Prima del asegurado titular : | N45: =N25*(1+Tablas!$K$3) ->  | O45: =O25*(1+Tablas!$K$3) ->  | P45: =P25*(1+Tablas!$K$3) -> 
L46: Prima del (de la) cónyuge: | N46: =N26*(1+Tablas!$K$3) ->  | O46: =O26*(1+Tablas!$K$3) ->  | P46: =P26*(1+Tablas!$K$3) -> 
L47: Prima del (de los) Hijo (s) : | N47: =N27*(1+Tablas!$K$3) -> 0 | O47: =O27*(1+Tablas!$K$3) -> 0 | P47: =P27*(1+Tablas!$K$3) -> 0
L48: TOTAL PRIMA NETA : | N48: =SUM(N45:N47) ->  | O48: =SUM(O45:O47) ->  | P48: =SUM(P45:P47) -> 
L49: Costo administrativo anual : | N49: 937.5 | O49: 937.5 | P49: 937.5
L50: IVA (16%) : | N50: =+N48*16% ->  | O50: =+O48*16% ->  | P50: =+P48*16% -> 
L51: TOTAL primera cuota : | N51: =((N48/4)+N49)*1.16 ->  | O51: =((O48/4)+O49)*1.16 -> 
L52: Valor cuota trimestral 2 a 4: | N52: =N48/4*1.16 ->  | O52: =O48/4*1.16 -> 
L53: =IF('INGRESO DE DATOS'!$E$21=TRUE,"Costo total, (-5% de descuento)","Gran total anual") -> Gran total anual | N53: =N51+(N52*3) ->  | O53: =O51+(O52*3) -> 
L55: TARIFAS MENSUALES
L56: Prima del asegurado titular : | N56: =N25*(1+Tablas!$K$2) ->  | O56: =O25*(1+Tablas!$K$2) ->  | P56: =P25*(1+Tablas!$K$2) -> 
L57: Prima del (de la) cónyuge: | N57: =N26*(1+Tablas!$K$2) ->  | O57: =O26*(1+Tablas!$K$2) ->  | P57: =P26*(1+Tablas!$K$2) -> 
L58: Prima del (de los) Hijo (s) : | N58: =N27*(1+Tablas!$K$2) -> 0 | O58: =O27*(1+Tablas!$K$2) -> 0 | P58: =P27*(1+Tablas!$K$2) -> 0
L59: TOTAL PRIMA NETA : | N59: =SUM(N56:N58) ->  | O59: =SUM(O56:O58) ->  | P59: =SUM(P56:P58) -> 
L60: Costo administrativo anual : | N60: 937.5 | O60: 937.5 | P60: 937.5
L61: IVA (16%) : | N61: =+N59*16% ->  | O61: =+O59*16% ->  | P61: =+P59*16% -> 
L62: TOTAL primera cuota : | N62: =((N59/12)+N60)*1.16 ->  | O62: =((O59/12)+O60)*1.16 ->  | P62: =((P59/12)+P60)*1.16 -> 
L63: Valor cuota mensual 2 a 12 : | N63: =N59/12*1.16 ->  | O63: =O59/12*1.16 -> 
L64: =IF('INGRESO DE DATOS'!$E$21=TRUE,"Costo total, (-5% de descuento)","Gran total anual") -> Gran total anual | N64: =N62+(N63*11) ->  | O64: =O62+(O63*11) ->  | P64: =P62+(P63*11) -> 
B67: Tarifas en MXN$ - Válidas desde el 01 de marzo de 2022
B68: La presente cotización es de carácter informativo y no constituye el monto de la prima definitiva ni las condiciones de la misma. La emisión de la póliza está sujeta a valoración del riesgo y/o cambio en la tarifa por parte del área de Suscripción de Bupa y puede tener modificaciones por lo que no expresa compromiso legal para la cobertura del seguro. Este cotizador es válido del del 1 de Marzo del 2022 al 31 de Diciembre del 2022.

Sheet Resumen tarifas
A17: Cotización de Seguro Médico - Bupa Global Health Plans
A19: Nombre del asegurado titular : | C19: =+'INGRESO DE DATOS'!$D$15 -> Nombre del Cliente
A21: Agencia / Agente : | C21: =+'INGRESO DE DATOS'!$D$27 -> Nombre del Agente
A23: Número de adultos en la póliza : | C23: ='INGRESO DE DATOS'!D17 -> 0 | E23: Edad del asegurado titular : | G23: ='INGRESO DE DATOS'!D19 -> 0
A26: Número de hijos en la póliza : | C26: ='INGRESO DE DATOS'!H17 -> 0 | E26: Edad del (de la) cónyuge : | G26: ='INGRESO DE DATOS'!H19 -> 0
D29: FECHA DE COTIZACION : | E29: =NOW() -> 2022-02-24T10:52:43.520
A41: Global Ultimate Health Plan
A42: Deducibles | C42: PLAN 1 | D42: PLAN 2 | E42: PLAN 3
A43: Dentro del país de residencia | C43: 0 | D43: 1000 | E43: 2000
A44: Fuera del país de residencia | C44: 0 | D44: 1000 | E44: 2000
C45: Tarifas Anuales
C46: =+'Global Ultimate Health Plan'!N31 ->  | D46: =+'Global Ultimate Health Plan'!O31 ->  | E46: =+'Global Ultimate Health Plan'!P31 -> 
C47: Tarifas Semestrales
C48: =+'Global Ultimate Health Plan'!N42 ->  | D48: =+'Global Ultimate Health Plan'!O42 ->  | E48: =+'Global Ultimate Health Plan'!P42 -> 
C49: Tarifas Trimestrales
C50: =+'Global Ultimate Health Plan'!N53 ->  | D50: =+'Global Ultimate Health Plan'!O53 ->  | E50: =+'Global Ultimate Health Plan'!P53 -> 
C51: Tarifas Mensuales
C52: =+'Global Ultimate Health Plan'!N64 ->  | D52: =+'Global Ultimate Health Plan'!O64 ->  | E52: =+'Global Ultimate Health Plan'!P64 -> 
A56: Global Elite Health Plan
A57: Deducibles | C57: PLAN 1 | D57: PLAN 2 | E57: PLAN 3 | F57: PLAN 4 | G57: PLAN 5
A58: Dentro del país de residencia | C58: 1000 | D58: 2000 | E58: 3500 | F58: 5000 | G58: 10000
A59: Fuera del país de residencia | C59: 1000 | D59: 2000 | E59: 3500 | F59: 5000 | G59: 10000
C60: Tarifas Anuales
C61: =+'Global Elite Health Plan'!M37 ->  | D61: =+'Global Elite Health Plan'!N37 ->  | E61: =+'Global Elite Health Plan'!O37 ->  | F61: =+'Global Elite Health Plan'!P37 ->  | G61: =+'Global Elite Health Plan'!Q37 -> 
C62: Tarifas Semestrales
C63: =+'Global Elite Health Plan'!M48 ->  | D63: =+'Global Elite Health Plan'!N48 ->  | E63: =+'Global Elite Health Plan'!O48 ->  | F63: =+'Global Elite Health Plan'!P48 ->  | G63: =+'Global Elite Health Plan'!Q48 -> 
C64: Tarifas Trimestrales
C65: =+'Global Elite Health Plan'!M59 ->  | D65: =+'Global Elite Health Plan'!N59 ->  | E65: =+'Global Elite Health Plan'!O59 ->  | F65: =+'Global Elite Health Plan'!P59 ->  | G65: =+'Global Elite Health Plan'!Q59 -> 
C66: Tarifas Mensuales
C67: =+'Global Elite Health Plan'!M70 ->  | D67: =+'Global Elite Health Plan'!N70 ->  | E67: =+'Global Elite Health Plan'!O70 ->  | F67: =+'Global Elite Health Plan'!P70 ->  | G67: =+'Global Elite Health Plan'!Q70 -> 
A69: Global Premier Health Plan
A70: Deducibles | C70: PLAN 1 | D70: PLAN 2 | E70: PLAN 3 | F70: PLAN 4
A71: Dentro del país de residencia | C71: 1000 | D71: 2000 | E71: 5000 | F71: 10000
A72: Fuera del país de residencia | C72: 1000 | D72: 2000 | E72: 5000 | F72: 10000
C73: Tarifas Anuales
C74: =+'Global Premier Health Plan'!N47 ->  | D74: =+'Global Premier Health Plan'!O47 ->  | E74: =+'Global Premier Health Plan'!P47 ->  | F74: =+'Global Premier Health Plan'!Q47 -> 
C75: Tarifas Semestrales
C76: =+'Global Premier Health Plan'!N58 ->  | D76: =+'Global Premier Health Plan'!O58 ->  | E76: =+'Global Premier Health Plan'!P58 ->  | F76: =+'Global Premier Health Plan'!Q58 -> 
C77: Tarifas Trimestrales
C78: =+'Global Premier Health Plan'!N69 ->  | D78: =+'Global Premier Health Plan'!O69 ->  | E78: =+'Global Premier Health Plan'!P69 ->  | F78: =+'Global Premier Health Plan'!Q69 -> 
C79: Tarifas Mensuales
C80: =+'Global Premier Health Plan'!N80 ->  | D80: =+'Global Premier Health Plan'!O80 ->  | E80: =+'Global Premier Health Plan'!P80 ->  | F80: =+'Global Premier Health Plan'!Q80 -> 
A82: Global Select Health Plan
A83: ESTE PRODUCTO NO CUENTA CON COBERTURA DE MATERNIDAD
A84: Deducibles | C84: PLAN A | D84: PLAN 1 | E84: PLAN 2 | F84: PLAN 3 | G84: PLAN 4
A85: Dentro del país de residencia | C85: 2000 | D85: 3500 | E85: 5000 | F85: 10000 | G85: 20000
A86: Fuera del país de residencia | C86: 2000 | D86: 3500 | E86: 5000 | F86: 10000 | G86: 20000
C87: Tarifas Anuales
C88: =+'Global Select Health Plan'!M44 ->  | D88: =+'Global Select Health Plan'!N44 ->  | E88: =+'Global Select Health Plan'!O44 ->  | F88: =+'Global Select Health Plan'!P44 ->  | G88: =+'Global Select Health Plan'!Q44 -> 
C89: Tarifas Semestrales
C90: =+'Global Select Health Plan'!M55 ->  | D90: =+'Global Select Health Plan'!N55 ->  | E90: =+'Global Select Health Plan'!O55 ->  | F90: =+'Global Select Health Plan'!P55 ->  | G90: =+'Global Select Health Plan'!Q55 -> 
C91: Tarifas Trimestrales
C92: =+'Global Select Health Plan'!M66 ->  | D92: =+'Global Select Health Plan'!N66 ->  | E92: =+'Global Select Health Plan'!O66 ->  | F92: =+'Global Select Health Plan'!P66 ->  | G92: =+'Global Select Health Plan'!Q66 -> 
C93: Tarifas Mensuales
C94: =+'Global Select Health Plan'!M77 ->  | D94: =+'Global Select Health Plan'!N77 ->  | E94: =+'Global Select Health Plan'!O77 ->  | F94: =+'Global Select Health Plan'!P77 ->  | G94: =+'Global Select Health Plan'!Q77 -> 
A96: Global Major Medical Health Plan
A97: Deducibles | C97: PLAN 1 | D97: PLAN 2
A98: Dentro del país de residencia | C98: 10000 | D98: 20000
A99: Fuera del país de residencia | C99: 10000 | D99: 20000
C100: Tarifas Anuales
C101: ='Global Major Medical Health Pla'!M42 ->  | D101: ='Global Major Medical Health Pla'!N42 -> 
C102: Tarifas Semestrales
C103: ='Global Major Medical Health Pla'!M53 ->  | D103: ='Global Major Medical Health Pla'!N53 -> 
C104: Tarifas Trimestrales
C105: ='Global Major Medical Health Pla'!M64 ->  | D105: ='Global Major Medical Health Pla'!N64 -> 
C106: Tarifas Mensuales
C107: ='Global Major Medical Health Pla'!M75 ->  | D107: ='Global Major Medical Health Pla'!N75 -> 
A109: $937.5 de costo administrativo anual aplica a la primera cuota
A111: Tarifas en MXN$ - Válidas desde el 01 de marzo de 2022
A113: La presente cotización es de carácter informativo y no constituye el monto de la prima definitiva ni las condiciones de la misma. La emisión de la póliza está sujeta a valoración del riesgo y/o cambio en la tarifa por parte del área de Suscripción de Bupa y puede tener modificaciones por lo que no expresa compromiso legal para la cobertura del seguro. Este cotizador es válido del del 1 de Marzo del 2022 al 31 de Diciembre del 2022.

Sheet Tablas (hidden)
A2: BUPA GLOBAL ELITE | I2: FACTOR MENSUAL: | K2: =IF('INGRESO DE DATOS'!E23,0,0.11) -> 0.11 | M2: % Anteriores | N2: 0.0925 | P2: Usamed | Q2: 625
A3: TARIFAS ANUALES | I3: FACTOR TRIMESTRAL: | K3: =IF('INGRESO DE DATOS'!E23,0,0.075) -> 0.075 | N3: 0.26875 | U3: 1000
A4: EDAD | I4: FACTOR SEMIANUAL: | K4: =IF('INGRESO DE DATOS'!E23,0,0.045) -> 0.045 | N4: 0.5225 | U4: 2 | V4: 0 | W4: 0.045
C5: 1000 | D5: 2000 | E5: 3500 | F5: 5000 | G5: 10000 | I5: THIS COLUMN IS FOR THE 5% DISCOUNT | U5: tre | V5: sum usa | W5: recargos | X5: cotizador
A6: 18 | C6: 134012.5 | D6: 96487.5 | E6: 75050 | F6: 65662.5 | G6: 50925 | I6: 96337.5 | J6: 69712.5 | K6: 54087.5 | L6: 47025 | M6: 36650 | O6: TRUE | P6: TRUE | Q6: TRUE | R6: TRUE | S6: TRUE | U6: 20950 | V6: 20950 | W6: 942.75 | X6: 21892.75
A7: 19 | C7: 138512.5 | D7: 99737.5 | E7: 77575 | F7: 67875 | G7: 52637.5 | I7: 100062.5 | J7: 72400 | K7: 56187.5 | L7: 48812.5 | M7: 38075 | O7: TRUE | P7: TRUE | Q7: TRUE | R7: TRUE | S7: TRUE | U7: 21768.75 | V7: 21768.75 | W7: 979.59375 | X7: 22748.34375
A8: 20 | C8: 143175 | D8: 103087.5 | E8: 80175 | F8: 70162.5 | G8: 54412.5 | I8: 104037.5 | J8: 75275 | K8: 58425 | L8: 50775 | M8: 39575 | O8: TRUE | P8: TRUE | Q8: TRUE | R8: TRUE | S8: TRUE | U8: 22643.75 | V8: 22643.75 | W8: 1018.96875 | X8: 23662.71875
A9: 21 | C9: 148000 | D9: 106562.5 | E9: 82875 | F9: 72512.5 | G9: 56237.5 | I9: 107950 | J9: 78100 | K9: 60550 | L9: 52612.5 | M9: 41012.5 | O9: TRUE | P9: TRUE | Q9: TRUE | R9: TRUE | S9: TRUE | U9: 23475 | V9: 23475 | W9: 1056.375 | X9: 24531.375
A10: 22 | C10: 152975 | D10: 110137.5 | E10: 85662.5 | F10: 74962.5 | G10: 58125 | I10: 111662.5 | J10: 80750 | K10: 62612.5 | L10: 54412.5 | M10: 42400 | O10: TRUE | P10: TRUE | Q10: TRUE | R10: TRUE | S10: TRUE | U10: 24281.25 | V10: 24281.25 | W10: 1092.65625 | X10: 25373.90625
A11: 23 | C11: 158125 | D11: 113850 | E11: 88550 | F11: 77475 | G11: 60087.5 | I11: 115587.5 | J11: 83612.5 | K11: 64825 | L11: 56312.5 | M11: 43875 | O11: TRUE | P11: TRUE | Q11: TRUE | R11: TRUE | S11: TRUE | U11: 25137.5 | V11: 25137.5 | W11: 1131.1875 | X11: 26268.6875
A12: 24 | C12: 163437.5 | D12: 117675 | E12: 91525 | F12: 80087.5 | G12: 62112.5 | I12: 119475 | J12: 86375 | K12: 66975 | L12: 58187.5 | M12: 45312.5 | O12: TRUE | P12: TRUE | Q12: TRUE | R12: TRUE | S12: TRUE | U12: 25962.5 | V12: 25962.5 | W12: 1168.3125 | X12: 27130.8125
A13: 25 | C13: 168937.5 | D13: 121637.5 | E13: 94612.5 | F13: 82787.5 | G13: 64200 | I13: 123187.5 | J13: 89037.5 | K13: 69025 | L13: 59975 | M13: 46700 | O13: TRUE | P13: TRUE | Q13: TRUE | R13: TRUE | S13: TRUE | U13: 26775 | V13: 26775 | W13: 1204.875 | X13: 27979.875
A14: 26 | C14: 174625 | D14: 125737.5 | E14: 97787.5 | F14: 85562.5 | G14: 66362.5 | I14: 127100 | J14: 91887.5 | K14: 71225 | L14: 61875 | M14: 48187.5 | O14: TRUE | P14: TRUE | Q14: TRUE | R14: TRUE | S14: TRUE | U14: 27637.5 | V14: 27637.5 | W14: 1243.6875 | X14: 28881.1875
A15: 27 | C15: 180500 | D15: 129962.5 | E15: 101087.5 | F15: 88450 | G15: 68587.5 | I15: 131000 | J15: 94687.5 | K15: 73400 | L15: 63762.5 | M15: 49650 | O15: TRUE | P15: TRUE | Q15: TRUE | R15: TRUE | S15: TRUE | U15: 28481.25 | V15: 28481.25 | W15: 1281.65625 | X15: 29762.90625
A16: 28 | C16: 186575 | D16: 134337.5 | E16: 104487.5 | F16: 91425 | G16: 70900 | I16: 135000 | J16: 97525 | K16: 75625 | L16: 65675 | M16: 51137.5 | O16: TRUE | P16: TRUE | Q16: TRUE | R16: TRUE | S16: TRUE | U16: 29350 | V16: 29350 | W16: 1320.75 | X16: 30670.75
A17: 29 | C17: 192850 | D17: 138850 | E17: 108000 | F17: 94500 | G17: 73287.5 | I17: 140075 | J17: 101187.5 | K17: 78437.5 | L17: 68125 | M17: 53025 | O17: TRUE | P17: TRUE | Q17: TRUE | R17: TRUE | S17: TRUE | U17: 30443.75 | V17: 30443.75 | W17: 1369.96875 | X17: 31813.71875
A18: 30 | C18: 199350 | D18: 143525 | E18: 111637.5 | F18: 97675 | G18: 75750 | I18: 145362.5 | J18: 105012.5 | K18: 81337.5 | L18: 70662.5 | M18: 55000 | O18: TRUE | P18: TRUE | Q18: TRUE | R18: TRUE | S18: TRUE | U18: 31587.5 | V18: 31587.5 | W18: 1421.4375 | X18: 33008.9375
A19: 31 | C19: 206050 | D19: 148362.5 | E19: 115387.5 | F19: 100962.5 | G19: 78300 | I19: 150587.5 | J19: 108800 | K19: 84300 | L19: 73200 | M19: 56975 | O19: TRUE | P19: TRUE | Q19: TRUE | R19: TRUE | S19: TRUE | U19: 32737.5 | V19: 32737.5 | W19: 1473.1875 | X19: 34210.6875
A20: 32 | C20: 212987.5 | D20: 153350 | E20: 119275 | F20: 104362.5 | G20: 80937.5 | I20: 155975 | J20: 112637.5 | K20: 87262.5 | L20: 75800 | M20: 58975 | O20: TRUE | P20: TRUE | Q20: TRUE | R20: TRUE | S20: TRUE | U20: 33893.75 | V20: 33893.75 | W20: 1525.21875 | X20: 35418.96875
A21: 33 | C21: 220150 | D21: 158512.5 | E21: 123287.5 | F21: 107875 | G21: 83662.5 | I21: 159162.5 | J21: 114950 | K21: 89037.5 | L21: 77312.5 | M21: 60150 | O21: TRUE | P21: TRUE | Q21: TRUE | R21: TRUE | S21: TRUE | U21: 34575 | V21: 34575 | W21: 1555.875 | X21: 36130.875
A22: 34 | C22: 228700 | D22: 164662.5 | E22: 128075 | F22: 112062.5 | G22: 86912.5 | I22: 162550 | J22: 117387.5 | K22: 90900 | L22: 78950 | M22: 61412.5 | O22: TRUE | P22: TRUE | Q22: TRUE | R22: TRUE | S22: TRUE | U22: 35312.5 | V22: 35312.5 | W22: 1589.0625 | X22: 36901.5625
A23: 35 | C23: 232462.5 | D23: 167375 | E23: 130175 | F23: 113900 | G23: 88337.5 | I23: 165900 | J23: 119800 | K23: 92787.5 | L23: 80575 | M23: 62675 | O23: TRUE | P23: TRUE | Q23: TRUE | R23: TRUE | S23: TRUE | U23: 36043.75 | V23: 36043.75 | W23: 1621.96875 | X23: 37665.71875
A24: 36 | C24: 236275 | D24: 170112.5 | E24: 132312.5 | F24: 115775 | G24: 89787.5 | I24: 169262.5 | J24: 122237.5 | K24: 94650 | L24: 82175 | M24: 63937.5 | O24: TRUE | P24: TRUE | Q24: TRUE | R24: TRUE | S24: TRUE | U24: 36768.75 | V24: 36768.75 | W24: 1654.59375 | X24: 38423.34375
A25: 37 | C25: 240150 | D25: 172912.5 | E25: 134487.5 | F25: 117675 | G25: 91262.5 | I25: 172612.5 | J25: 124637.5 | K25: 96512.5 | L25: 83787.5 | M25: 65187.5 | O25: TRUE | P25: TRUE | Q25: TRUE | R25: TRUE | S25: TRUE | U25: 37500 | V25: 37500 | W25: 1687.5 | X25: 39187.5
A26: 38 | C26: 244087.5 | D26: 175750 | E26: 136687.5 | F26: 119600 | G26: 92750 | I26: 175550 | J26: 126737.5 | K26: 98112.5 | L26: 85187.5 | M26: 66262.5 | O26: TRUE | P26: TRUE | Q26: TRUE | R26: TRUE | S26: TRUE | U26: 38125 | V26: 38125 | W26: 1715.625 | X26: 39840.625
A27: 39 | C27: 248100 | D27: 178625 | E27: 138937.5 | F27: 121562.5 | G27: 94275 | I27: 178275 | J27: 128737.5 | K27: 99675 | L27: 86550 | M27: 67312.5 | O27: TRUE | P27: TRUE | Q27: TRUE | R27: TRUE | S27: TRUE | U27: 38731.25 | V27: 38731.25 | W27: 1742.90625 | X27: 40474.15625
A28: 40 | C28: 252162.5 | D28: 181562.5 | E28: 141212.5 | F28: 123562.5 | G28: 95825 | I28: 181162.5 | J28: 130812.5 | K28: 101300 | L28: 87937.5 | M28: 68387.5 | O28: TRUE | P28: TRUE | Q28: TRUE | R28: TRUE | S28: TRUE | U28: 39356.25 | V28: 39356.25 | W28: 1771.03125 | X28: 41127.28125
A29: 41 | C29: 256300 | D29: 184537.5 | E29: 143537.5 | F29: 125587.5 | G29: 97400 | I29: 184012.5 | J29: 132825 | K29: 102850 | L29: 89287.5 | M29: 69425 | O29: TRUE | P29: TRUE | Q29: TRUE | R29: TRUE | S29: TRUE | U29: 39956.25 | V29: 39956.25 | W29: 1798.03125 | X29: 41754.28125
A30: 42 | C30: 260512.5 | D30: 187575 | E30: 145887.5 | F30: 127650 | G30: 99000 | I30: 186887.5 | J30: 134937.5 | K30: 104475 | L30: 90687.5 | M30: 70537.5 | O30: TRUE | P30: TRUE | Q30: TRUE | R30: TRUE | S30: TRUE | U30: 40600 | V30: 40600 | W30: 1827 | X30: 42427
A31: 43 | C31: 264787.5 | D31: 190650 | E31: 148275 | F31: 129750 | G31: 100625 | I31: 190275 | J31: 137350 | K31: 106350 | L31: 92325 | M31: 71812.5 | O31: TRUE | P31: TRUE | Q31: TRUE | R31: TRUE | S31: TRUE | U31: 41343.75 | V31: 41343.75 | W31: 1860.46875 | X31: 43204.21875
A32: 44 | C32: 269137.5 | D32: 193775 | E32: 150712.5 | F32: 131875 | G32: 102275 | I32: 193787.5 | J32: 139900 | K32: 108287.5 | L32: 94000 | M32: 73100 | O32: TRUE | P32: TRUE | Q32: TRUE | R32: TRUE | S32: TRUE | U32: 42087.5 | V32: 42087.5 | W32: 1893.9375 | X32: 43981.4375
A33: 45 | C33: 273550 | D33: 196950 | E33: 153187.5 | F33: 134037.5 | G33: 103950 | I33: 197187.5 | J33: 142337.5 | K33: 110200 | L33: 95662.5 | M33: 74375 | O33: TRUE | P33: TRUE | Q33: TRUE | R33: TRUE | S33: TRUE | U33: 42831.25 | V33: 42831.25 | W33: 1927.40625 | X33: 44758.65625
A34: 46 | C34: 278037.5 | D34: 200187.5 | E34: 155700 | F34: 136237.5 | G34: 105650 | I34: 200650 | J34: 144837.5 | K34: 112087.5 | L34: 97312.5 | M34: 75662.5 | O34: TRUE | P34: TRUE | Q34: TRUE | R34: TRUE | S34: TRUE | U34: 43575 | V34: 43575 | W34: 1960.875 | X34: 45535.875
A35: 47 | C35: 282600 | D35: 203475 | E35: 158250 | F35: 138475 | G35: 107387.5 | I35: 204037.5 | J35: 147250 | K35: 113987.5 | L35: 98950 | M35: 76925 | O35: TRUE | P35: TRUE | Q35: TRUE | R35: TRUE | S35: TRUE | U35: 44312.5 | V35: 44312.5 | W35: 1994.0625 | X35: 46306.5625
A36: 48 | C36: 287237.5 | D36: 206812.5 | E36: 160850 | F36: 140750 | G36: 109150 | I36: 208800 | J36: 150700 | K36: 117137.5 | L36: 101687.5 | M36: 79050 | O36: TRUE | P36: TRUE | Q36: TRUE | R36: TRUE | S36: TRUE | U36: 45537.5 | V36: 45537.5 | W36: 2049.1875 | X36: 47586.6875
A37: 49 | C37: 293687.5 | D37: 211450 | E37: 164462.5 | F37: 143900 | G37: 111600 | I37: 213575 | J37: 154125 | K37: 120275 | L37: 104412.5 | M37: 81150 | O37: TRUE | P37: TRUE | Q37: TRUE | R37: TRUE | S37: TRUE | U37: 46756.25 | V37: 46756.25 | W37: 2104.03125 | X37: 48860.28125
A38: 50 | C38: 304600 | D38: 219312.5 | E38: 170575 | F38: 149250 | G38: 115750 | I38: 219462.5 | J38: 158362.5 | K38: 123562.5 | L38: 107262.5 | M38: 83362.5 | O38: TRUE | P38: TRUE | Q38: TRUE | R38: TRUE | S38: TRUE | U38: 48043.75 | V38: 48043.75 | W38: 2161.96875 | X38: 50205.71875
A39: 51 | C39: 315925 | D39: 227462.5 | E39: 176912.5 | F39: 154800 | G39: 120050 | I39: 225062.5 | J39: 162362.5 | K39: 126725 | L39: 110000 | M39: 85512.5 | O39: TRUE | P39: TRUE | Q39: TRUE | R39: TRUE | S39: TRUE | U39: 49293.75 | V39: 49293.75 | W39: 2218.21875 | X39: 51511.96875
A40: 52 | C40: 327662.5 | D40: 235912.5 | E40: 183487.5 | F40: 160550 | G40: 124512.5 | I40: 230700 | J40: 166450 | K40: 129912.5 | L40: 112737.5 | M40: 87637.5 | O40: TRUE | P40: TRUE | Q40: TRUE | R40: TRUE | S40: TRUE | U40: 50525 | V40: 50525 | W40: 2273.625 | X40: 52798.625
A41: 53 | C41: 339837.5 | D41: 244687.5 | E41: 190312.5 | F41: 166525 | G41: 129137.5 | I41: 241150 | J41: 173987.5 | K41: 135712.5 | L41: 117787.5 | M41: 91562.5 | O41: TRUE | P41: TRUE | Q41: TRUE | R41: TRUE | S41: TRUE | U41: 52793.75 | V41: 52793.75 | W41: 2375.71875 | X41: 55169.46875
A42: 54 | C42: 352475 | D42: 253787.5 | E42: 197387.5 | F42: 172712.5 | G42: 133937.5 | I42: 251462.5 | J42: 181412.5 | K42: 141487.5 | L42: 122800 | M42: 95450 | O42: TRUE | P42: TRUE | Q42: TRUE | R42: TRUE | S42: TRUE | U42: 55056.25 | V42: 55056.25 | W42: 2477.53125 | X42: 57533.78125
A43: 55 | C43: 365575 | D43: 263212.5 | E43: 204725 | F43: 179137.5 | G43: 138925 | I43: 261975 | J43: 188975 | K43: 147387.5 | L43: 127937.5 | M43: 99387.5 | O43: TRUE | P43: TRUE | Q43: TRUE | R43: TRUE | S43: TRUE | U43: 57337.5 | V43: 57337.5 | W43: 2580.1875 | X43: 59917.6875
A44: 56 | C44: 379112.5 | D44: 272962.5 | E44: 212300 | F44: 185762.5 | G44: 144062.5 | I44: 272400 | J44: 196487.5 | K44: 153250 | L44: 132987.5 | M44: 103350 | O44: TRUE | P44: TRUE | Q44: TRUE | R44: TRUE | S44: TRUE | U44: 59637.5 | V44: 59637.5 | W44: 2683.6875 | X44: 62321.1875
A45: 57 | C45: 399937.5 | D45: 287950 | E45: 223962.5 | F45: 195975 | G45: 151975 | I45: 282900 | J45: 204050 | K45: 159125 | L45: 138087.5 | M45: 107287.5 | O45: TRUE | P45: TRUE | Q45: TRUE | R45: TRUE | S45: TRUE | U45: 61925 | V45: 61925 | W45: 2786.625 | X45: 64711.625
A46: 58 | C46: 421912.5 | D46: 303775 | E46: 236275 | F46: 206737.5 | G46: 160325 | I46: 300812.5 | J46: 216937.5 | K46: 169162.5 | L46: 146800 | M46: 114025 | O46: TRUE | P46: TRUE | Q46: TRUE | R46: TRUE | S46: TRUE | U46: 65831.25 | V46: 65831.25 | W46: 2962.40625 | X46: 68793.65625
A47: 59 | C47: 445087.5 | D47: 320462.5 | E47: 249250 | F47: 218100 | G47: 169137.5 | I47: 318700 | J47: 229837.5 | K47: 179175 | L47: 155487.5 | M47: 120775 | O47: TRUE | P47: TRUE | Q47: TRUE | R47: TRUE | S47: TRUE | U47: 69737.5 | V47: 69737.5 | W47: 3138.1875 | X47: 72875.6875
A48: 60 | C48: 469550 | D48: 338075 | E48: 262950 | F48: 230075 | G48: 178425 | I48: 336762.5 | J48: 242825 | K48: 189312.5 | L48: 164275 | M48: 127575 | O48: TRUE | P48: TRUE | Q48: TRUE | R48: TRUE | S48: TRUE | U48: 73687.5 | V48: 73687.5 | W48: 3315.9375 | X48: 77003.4375
A49: 61 | C49: 495350 | D49: 356650 | E49: 277400 | F49: 242725 | G49: 188225 | I49: 354600 | J49: 255637.5 | K49: 199287.5 | L49: 172912.5 | M49: 134287.5 | O49: TRUE | P49: TRUE | Q49: TRUE | R49: TRUE | S49: TRUE | U49: 77581.25 | V49: 77581.25 | W49: 3491.15625 | X49: 81072.40625
A50: 62 | C50: 522562.5 | D50: 376250 | E50: 292637.5 | F50: 256050 | G50: 198575 | I50: 372650 | J50: 268662.5 | K50: 209425 | L50: 181700 | M50: 141125 | O50: TRUE | P50: TRUE | Q50: TRUE | R50: TRUE | S50: TRUE | U50: 81556.25 | V50: 81556.25 | W50: 3670.03125 | X50: 85226.28125
A51: 63 | C51: 551275 | D51: 396912.5 | E51: 308712.5 | F51: 270125 | G51: 209487.5 | I51: 400437.5 | J51: 288662.5 | K51: 225025 | L51: 195225 | M51: 151587.5 | O51: TRUE | P51: TRUE | Q51: TRUE | R51: TRUE | S51: TRUE | U51: 87618.75 | V51: 87618.75 | W51: 3942.84375 | X51: 91561.59375
A52: 64 | C52: 593575 | D52: 427375 | E52: 332400 | F52: 290850 | G52: 225562.5 | I52: 428237.5 | J52: 308712.5 | K52: 240625 | L52: 208750 | M52: 162087.5 | O52: TRUE | P52: TRUE | Q52: TRUE | R52: TRUE | S52: TRUE | U52: 93706.25 | V52: 93706.25 | W52: 4216.78125 | X52: 97923.03125
A53: 65 | C53: 631775 | D53: 454875 | E53: 353800 | F53: 309575 | G53: 240075 | I53: 456125 | J53: 328750 | K53: 256200 | L53: 222287.5 | M53: 172587.5 | O53: TRUE | P53: TRUE | Q53: TRUE | R53: TRUE | S53: TRUE | U53: 99793.75 | V53: 99793.75 | W53: 4490.71875 | X53: 104284.4688
A54: 66 | C54: 672425 | D54: 484150 | E54: 376562.5 | F54: 329487.5 | G54: 255525 | I54: 483887.5 | J54: 348750 | K54: 271800 | L54: 235787.5 | M54: 183050 | O54: TRUE | P54: TRUE | Q54: TRUE | R54: TRUE | S54: TRUE | U54: 105875 | V54: 105875 | W54: 4764.375 | X54: 110639.375
A55: 67 | C55: 715700 | D55: 515300 | E55: 400787.5 | F55: 350687.5 | G55: 271962.5 | I55: 511837.5 | J55: 368875 | K55: 287450 | L55: 249350 | M55: 193575 | O55: TRUE | P55: TRUE | Q55: TRUE | R55: TRUE | S55: TRUE | U55: 111975 | V55: 111975 | W55: 5038.875 | X55: 117013.875
A56: 68 | C56: 761750 | D56: 548462.5 | E56: 426587.5 | F56: 373262.5 | G56: 289462.5 | I56: 550312.5 | J56: 396600 | K56: 309000 | L56: 268025 | M56: 208062.5 | O56: TRUE | P56: TRUE | Q56: TRUE | R56: TRUE | S56: TRUE | U56: 120375 | V56: 120375 | W56: 5416.875 | X56: 125791.875
A57: 69 | C57: 810775 | D57: 583750 | E57: 454037.5 | F57: 397275 | G57: 308100 | I57: 588925 | J57: 424387.5 | K57: 330650 | L57: 286812.5 | M57: 222612.5 | O57: TRUE | P57: TRUE | Q57: TRUE | R57: TRUE | S57: TRUE | U57: 128812.5 | V57: 128812.5 | W57: 5796.5625 | X57: 134609.0625
A58: 70 | C58: 862950 | D58: 621325 | E58: 483250 | F58: 422837.5 | G58: 327925 | I58: 627587.5 | J58: 452237.5 | K58: 352325 | L58: 305587.5 | M58: 237212.5 | O58: TRUE | P58: TRUE | Q58: TRUE | R58: TRUE | S58: TRUE | U58: 137281.25 | V58: 137281.25 | W58: 6177.65625 | X58: 143458.9062
A59: 71 | C59: 929537.5 | D59: 669262.5 | E59: 520537.5 | F59: 455475 | G59: 353225 | I59: 666325 | J59: 480100 | K59: 374050 | L59: 324437.5 | M59: 251800 | O59: TRUE | P59: TRUE | Q59: TRUE | R59: TRUE | S59: TRUE | U59: 145756.25 | V59: 145756.25 | W59: 6559.03125 | X59: 152315.2812
A60: 72 | C60: 981225 | D60: 706487.5 | E60: 549487.5 | F60: 480800 | G60: 372862.5 | I60: 704950 | J60: 507912.5 | K60: 395700 | L60: 343200 | M60: 266362.5 | O60: TRUE | P60: TRUE | Q60: TRUE | R60: TRUE | S60: TRUE | U60: 154200 | V60: 154200 | W60: 6939 | X60: 161139
A61: 73 | C61: 1035800 | D61: 745775 | E61: 580050 | F61: 507537.5 | G61: 393600 | I61: 750825 | J61: 540950 | K61: 421375 | L61: 365475 | M61: 283625 | O61: TRUE | P61: TRUE | Q61: TRUE | R61: TRUE | S61: TRUE | U61: 164212.5 | V61: 164212.5 | W61: 7389.5625 | X61: 171602.0625
A62: 74 | C62: 1093400 | D62: 787250 | E62: 612300 | F62: 535762.5 | G62: 415487.5 | I62: 796675 | J62: 573987.5 | K62: 447100 | L62: 387787.5 | M62: 300937.5 | O62: TRUE | P62: TRUE | Q62: TRUE | R62: TRUE | S62: TRUE | U62: 174250 | V62: 174250 | W62: 7841.25 | X62: 182091.25
A63: 75 | C63: 1154200 | D63: 831025 | E63: 646350 | F63: 565562.5 | G63: 438600 | I63: 842500 | J63: 606987.5 | K63: 472775 | L63: 410050 | M63: 318200 | O63: TRUE | P63: TRUE | Q63: TRUE | R63: TRUE | S63: TRUE | U63: 184268.75 | V63: 184268.75 | W63: 8292.09375 | X63: 192560.8438
A64: 76 | C64: 1218387.5 | D64: 877237.5 | E64: 682300 | F64: 597012.5 | G64: 462987.5 | I64: 888400 | J64: 640000 | K64: 498512.5 | L64: 432375 | M64: 335525 | O64: TRUE | P64: TRUE | Q64: TRUE | R64: TRUE | S64: TRUE | U64: 194318.75 | V64: 194318.75 | W64: 8744.34375 | X64: 203063.0938
A65: 77 | C65: 1286150 | D65: 926025 | E65: 720250 | F65: 630212.5 | G65: 488737.5 | I65: 934237.5 | J65: 673000 | K65: 524187.5 | L65: 454612.5 | M65: 352762.5 | O65: TRUE | P65: TRUE | Q65: TRUE | R65: TRUE | S65: TRUE | U65: 204312.5 | V65: 204312.5 | W65: 9194.0625 | X65: 213506.5625
A66: 78 | C66: 1357675 | D66: 977525 | E66: 760300 | F66: 665262.5 | G66: 515912.5 | I66: 981025 | J66: 706700 | K66: 550400 | L66: 477362.5 | M66: 370412.5 | O66: TRUE | P66: TRUE | Q66: TRUE | R66: TRUE | S66: TRUE | U66: 214556.25 | V66: 214556.25 | W66: 9655.03125 | X66: 224211.2812
A67: 79 | C67: 1433175 | D67: 1031887.5 | E67: 802575 | F67: 702262.5 | G67: 544612.5 | I67: 1028037.5 | J67: 740525 | K67: 576737.5 | L67: 500200 | M67: 388125 | O67: TRUE | P67: TRUE | Q67: TRUE | R67: TRUE | S67: TRUE | U67: 224825 | V67: 224825 | W67: 10117.125 | X67: 234942.125
A68: 80 | C68: 1495400 | D68: 1076687.5 | E68: 837425 | F68: 732750 | G68: 568250 | I68: 1075075 | J68: 774425 | K68: 603150 | L68: 523112.5 | M68: 405862.5 | O68: TRUE | P68: TRUE | Q68: TRUE | R68: TRUE | S68: TRUE | U68: 235118.75 | V68: 235118.75 | W68: 10580.34375 | X68: 245699.0938
A69: 81 | C69: 1553825 | D69: 1118750 | E69: 870137.5 | F69: 761375 | G69: 590450 | I69: 1121900 | J69: 808125 | K69: 629387.5 | L69: 545875 | M69: 423537.5 | O69: TRUE | P69: TRUE | Q69: TRUE | R69: TRUE | S69: TRUE | U69: 245362.5 | V69: 245362.5 | W69: 11041.3125 | X69: 256403.8125
A70: 82 | C70: 1614525 | D70: 1162462.5 | E70: 904137.5 | F70: 791125 | G70: 613525 | I70: 1168887.5 | J70: 841962.5 | K70: 655737.5 | L70: 568712.5 | M70: 441237.5 | O70: TRUE | P70: TRUE | Q70: TRUE | R70: TRUE | S70: TRUE | U70: 255631.25 | V70: 255631.25 | W70: 11503.40625 | X70: 267134.6562
A71: 83 | C71: 1677600 | D71: 1207875 | E71: 939462.5 | F71: 822025 | G71: 637487.5 | I71: 1215912.5 | J71: 875825 | K71: 682100 | L71: 591550 | M71: 458975 | O71: TRUE | P71: TRUE | Q71: TRUE | R71: TRUE | S71: TRUE | U71: 265918.75 | V71: 265918.75 | W71: 11966.34375 | X71: 277885.0938
A72: 84 | B72: o más | C72: 1743150 | D72: 1255062.5 | E72: 976162.5 | F72: 854137.5 | G72: 662400 | I72: 1262825 | J72: 909600 | K72: 708350 | L72: 614325 | M72: 476637.5 | O72: TRUE | P72: TRUE | Q72: TRUE | R72: TRUE | S72: TRUE | U72: 276168.75 | V72: 276168.75 | W72: 12427.59375 | X72: 288596.3438
A73: 1 | B73: Hijo | C73: 55025 | D73: 39625 | E73: 30812.5 | F73: 26962.5 | G73: 20912.5 | I73: 39537.5 | J73: 28475 | K73: 23362.5 | L73: 20237.5 | M73: 15700 | O73: TRUE | P73: TRUE | Q73: TRUE | R73: TRUE | S73: TRUE | U73: 9100 | V73: 9100 | W73: 409.5 | X73: 9509.5
A74: 2 | B74: Hijos | C74: 86712.5 | D74: 62425 | E74: 48562.5 | F74: 42487.5 | G74: 32950 | I74: 62287.5 | J74: 44862.5 | K74: 36750 | L74: 31875 | M74: 24712.5 | O74: TRUE | P74: TRUE | Q74: TRUE | R74: TRUE | S74: TRUE | U74: 14331.25 | V74: 14331.25 | W74: 644.90625 | X74: 14976.15625
A75: 3 | B75: Hijos o más | C75: 126512.5 | D75: 91087.5 | E75: 70850 | F75: 61987.5 | G75: 48075 | I75: 90862.5 | J75: 65412.5 | K75: 53612.5 | L75: 46487.5 | M75: 36062.5 | O75: TRUE | P75: TRUE | Q75: TRUE | R75: TRUE | S75: TRUE | U75: 20918.75 | V75: 20918.75 | W75: 941.34375 | X75: 21860.09375
A77: BUPA GLOBAL ELITE - MENSUALES
A78: EDAD
C79: 1000 | D79: 2000 | E79: 3500
A80: 18 | C80: =C6*$K$2 -> 14741.375 | D80: =D6*$K$2 -> 10613.625 | E80: 8255.5 | F80: 7222.875 | G80: 5601.75 | O80: FALSE | P80: FALSE | Q80: FALSE | R80: FALSE | S80: FALSE
A81: 19 | C81: =C7*$K$2 -> 15236.375 | D81: 10971.125 | E81: 8533.25 | F81: 7466.25 | G81: 5790.125 | O81: FALSE | P81: FALSE | Q81: FALSE | R81: FALSE | S81: FALSE
A82: 20 | C82: =C8*$K$2 -> 15749.25 | D82: 11339.625 | E82: 8819.25 | F82: 7717.875 | G82: 5985.375 | O82: FALSE | P82: FALSE | Q82: FALSE | R82: FALSE | S82: FALSE
A83: 21 | C83: =C9*$K$2 -> 16280 | D83: 11721.875 | E83: 9116.25 | F83: 7976.375 | G83: 6186.125 | O83: FALSE | P83: FALSE | Q83: FALSE | R83: FALSE | S83: FALSE
A84: 22 | C84: =C10*$K$2 -> 16827.25 | D84: 12115.125 | E84: 9422.875 | F84: 8245.875 | G84: 6393.75 | O84: FALSE | P84: FALSE | Q84: FALSE | R84: FALSE | S84: FALSE
A85: 23 | C85: =C11*$K$2 -> 17393.75 | D85: 12523.5 | E85: 9740.5 | F85: 8522.25 | G85: 6609.625 | O85: FALSE | P85: FALSE | Q85: FALSE | R85: FALSE | S85: FALSE
A86: 24 | C86: =C12*$K$2 -> 17978.125 | D86: 12944.25 | E86: 10067.75 | F86: 8809.625 | G86: 6832.375 | O86: FALSE | P86: FALSE | Q86: FALSE | R86: FALSE | S86: FALSE
A87: 25 | C87: =C13*$K$2 -> 18583.125 | D87: 13380.125 | E87: 10407.375 | F87: 9106.625 | G87: 7062 | O87: FALSE | P87: FALSE | Q87: FALSE | R87: FALSE | S87: FALSE
A88: 26 | C88: =C14*$K$2 -> 19208.75 | D88: 13831.125 | E88: 10756.625 | F88: 9411.875 | G88: 7299.875 | O88: FALSE | P88: FALSE | Q88: FALSE | R88: FALSE | S88: FALSE
A89: 27 | C89: =C15*$K$2 -> 19855 | D89: 14295.875 | E89: 11119.625 | F89: 9729.5 | G89: 7544.625 | O89: FALSE | P89: FALSE | Q89: FALSE | R89: FALSE | S89: FALSE
A90: 28 | C90: =C16*$K$2 -> 20523.25 | D90: 14777.125 | E90: 11493.625 | F90: 10056.75 | G90: 7799 | O90: FALSE | P90: FALSE | Q90: FALSE | R90: FALSE | S90: FALSE
A91: 29 | C91: =C17*$K$2 -> 21213.5 | D91: 15273.5 | E91: 11880 | F91: 10395 | G91: 8061.625 | O91: FALSE | P91: FALSE | Q91: FALSE | R91: FALSE | S91: FALSE
A92: 30 | C92: =C18*$K$2 -> 21928.5 | D92: 15787.75 | E92: 12280.125 | F92: 10744.25 | G92: 8332.5 | O92: FALSE | P92: FALSE | Q92: FALSE | R92: FALSE | S92: FALSE
A93: 31 | C93: =C19*$K$2 -> 22665.5 | D93: 16319.875 | E93: 12692.625 | F93: 11105.875 | G93: 8613 | O93: FALSE | P93: FALSE | Q93: FALSE | R93: FALSE | S93: FALSE
A94: 32 | C94: =C20*$K$2 -> 23428.625 | D94: 16868.5 | E94: 13120.25 | F94: 11479.875 | G94: 8903.125 | O94: FALSE | P94: FALSE | Q94: FALSE | R94: FALSE | S94: FALSE
A95: 33 | C95: =C21*$K$2 -> 24216.5 | D95: 17436.375 | E95: 13561.625 | F95: 11866.25 | G95: 9202.875 | O95: FALSE | P95: FALSE | Q95: FALSE | R95: FALSE | S95: FALSE
A96: 34 | C96: =C22*$K$2 -> 25157 | D96: 18112.875 | E96: 14088.25 | F96: 12326.875 | G96: 9560.375 | O96: FALSE | P96: FALSE | Q96: FALSE | R96: FALSE | S96: FALSE
A97: 35 | C97: =C23*$K$2 -> 25570.875 | D97: 18411.25 | E97: 14319.25 | F97: 12529 | G97: 9717.125 | O97: FALSE | P97: FALSE | Q97: FALSE | R97: FALSE | S97: FALSE
A98: 36 | C98: =C24*$K$2 -> 25990.25 | D98: 18712.375 | E98: 14554.375 | F98: 12735.25 | G98: 9876.625 | O98: FALSE | P98: FALSE | Q98: FALSE | R98: FALSE | S98: FALSE
A99: 37 | C99: =C25*$K$2 -> 26416.5 | D99: 19020.375 | E99: 14793.625 | F99: 12944.25 | G99: 10038.875 | O99: FALSE | P99: FALSE | Q99: FALSE | R99: FALSE | S99: FALSE
A100: 38 | C100: =C26*$K$2 -> 26849.625 | D100: 19332.5 | E100: 15035.625 | F100: 13156 | G100: 10202.5 | O100: FALSE | P100: FALSE | Q100: FALSE | R100: FALSE | S100: FALSE
A101: 39 | C101: =C27*$K$2 -> 27291 | D101: 19648.75 | E101: 15283.125 | F101: 13371.875 | G101: 10370.25 | O101: FALSE | P101: FALSE | Q101: FALSE | R101: FALSE | S101: FALSE
A102: 40 | C102: =C28*$K$2 -> 27737.875 | D102: 19971.875 | E102: 15533.375 | F102: 13591.875 | G102: 10540.75 | O102: FALSE | P102: FALSE | Q102: FALSE | R102: FALSE | S102: FALSE
A103: 41 | C103: =C29*$K$2 -> 28193 | D103: 20299.125 | E103: 15789.125 | F103: 13814.625 | G103: 10714 | O103: FALSE | P103: FALSE | Q103: FALSE | R103: FALSE | S103: FALSE
A104: 42 | C104: =C30*$K$2 -> 28656.375 | D104: 20633.25 | E104: 16047.625 | F104: 14041.5 | G104: 10890 | O104: FALSE | P104: FALSE | Q104: FALSE | R104: FALSE | S104: FALSE
A105: 43 | C105: =C31*$K$2 -> 29126.625 | D105: 20971.5 | E105: 16310.25 | F105: 14272.5 | G105: 11068.75 | O105: FALSE | P105: FALSE | Q105: FALSE | R105: FALSE | S105: FALSE
A106: 44 | C106: =C32*$K$2 -> 29605.125 | D106: 21315.25 | E106: 16578.375 | F106: 14506.25 | G106: 11250.25 | O106: FALSE | P106: FALSE | Q106: FALSE | R106: FALSE | S106: FALSE
A107: 45 | C107: =C33*$K$2 -> 30090.5 | D107: 21664.5 | E107: 16850.625 | F107: 14744.125 | G107: 11434.5 | O107: FALSE | P107: FALSE | Q107: FALSE | R107: FALSE | S107: FALSE
A108: 46 | C108: =C34*$K$2 -> 30584.125 | D108: 22020.625 | E108: 17127 | F108: 14986.125 | G108: 11621.5 | O108: FALSE | P108: FALSE | Q108: FALSE | R108: FALSE | S108: FALSE
A109: 47 | C109: =C35*$K$2 -> 31086 | D109: 22382.25 | E109: 17407.5 | F109: 15232.25 | G109: 11812.625 | O109: FALSE | P109: FALSE | Q109: FALSE | R109: FALSE | S109: FALSE
A110: 48 | C110: =C36*$K$2 -> 31596.125 | D110: 22749.375 | E110: 17693.5 | F110: 15482.5 | G110: 12006.5 | O110: FALSE | P110: FALSE | Q110: FALSE | R110: FALSE | S110: FALSE
A111: 49 | C111: =C37*$K$2 -> 32305.625 | D111: 23259.5 | E111: 18090.875 | F111: 15829 | G111: 12276 | O111: FALSE | P111: FALSE | Q111: FALSE | R111: FALSE | S111: FALSE
A112: 50 | C112: =C38*$K$2 -> 33506 | D112: 24124.375 | E112: 18763.25 | F112: 16417.5 | G112: 12732.5 | O112: FALSE | P112: FALSE | Q112: FALSE | R112: FALSE | S112: FALSE
A113: 51 | C113: =C39*$K$2 -> 34751.75 | D113: 25020.875 | E113: 19460.375 | F113: 17028 | G113: 13205.5 | O113: FALSE | P113: FALSE | Q113: FALSE | R113: FALSE | S113: FALSE
A114: 52 | C114: =C40*$K$2 -> 36042.875 | D114: 25950.375 | E114: 20183.625 | F114: 17660.5 | G114: 13696.375 | O114: FALSE | P114: FALSE | Q114: FALSE | R114: FALSE | S114: FALSE
A115: 53 | C115: =C41*$K$2 -> 37382.125 | D115: 26915.625 | E115: 20934.375 | F115: 18317.75 | G115: 14205.125 | O115: FALSE | P115: FALSE | Q115: FALSE | R115: FALSE | S115: FALSE
A116: 54 | C116: =C42*$K$2 -> 38772.25 | D116: 27916.625 | E116: 21712.625 | F116: 18998.375 | G116: 14733.125 | O116: FALSE | P116: FALSE | Q116: FALSE | R116: FALSE | S116: FALSE
A117: 55 | C117: =C43*$K$2 -> 40213.25 | D117: 28953.375 | E117: 22519.75 | F117: 19705.125 | G117: 15281.75 | O117: FALSE | P117: FALSE | Q117: FALSE | R117: FALSE | S117: FALSE
A118: 56 | C118: =C44*$K$2 -> 41702.375 | D118: 30025.875 | E118: 23353 | F118: 20433.875 | G118: 15846.875 | O118: FALSE | P118: FALSE | Q118: FALSE | R118: FALSE | S118: FALSE
A119: 57 | C119: =C45*$K$2 -> 43993.125 | D119: 31674.5 | E119: 24635.875 | F119: 21557.25 | G119: 16717.25 | O119: FALSE | P119: FALSE | Q119: FALSE | R119: FALSE | S119: FALSE
A120: 58 | C120: =C46*$K$2 -> 46410.375 | D120: 33415.25 | E120: 25990.25 | F120: 22741.125 | G120: 17635.75 | O120: FALSE | P120: FALSE | Q120: FALSE | R120: FALSE | S120: FALSE
A121: 59 | C121: =C47*$K$2 -> 48959.625 | D121: 35250.875 | E121: 27417.5 | F121: 23991 | G121: 18605.125 | O121: FALSE | P121: FALSE | Q121: FALSE | R121: FALSE | S121: FALSE
A122: 60 | C122: =C48*$K$2 -> 51650.5 | D122: 37188.25 | E122: 28924.5 | F122: 25308.25 | G122: 19626.75 | O122: FALSE | P122: FALSE | Q122: FALSE | R122: FALSE | S122: FALSE
A123: 61 | C123: =C49*$K$2 -> 54488.5 | D123: 39231.5 | E123: 30514 | F123: 26699.75 | G123: 20704.75 | O123: FALSE | P123: FALSE | Q123: FALSE | R123: FALSE | S123: FALSE
A124: 62 | C124: =C50*$K$2 -> 57481.875 | D124: 41387.5 | E124: 32190.125 | F124: 28165.5 | G124: 21843.25 | O124: FALSE | P124: FALSE | Q124: FALSE | R124: FALSE | S124: FALSE
A125: 63 | C125: =C51*$K$2 -> 60640.25 | D125: 43660.375 | E125: 33958.375 | F125: 29713.75 | G125: 23043.625 | O125: FALSE | P125: FALSE | Q125: FALSE | R125: FALSE | S125: FALSE
A126: 64 | C126: =C52*$K$2 -> 65293.25 | D126: 47011.25 | E126: 36564 | F126: 31993.5 | G126: 24811.875 | O126: FALSE | P126: FALSE | Q126: FALSE | R126: FALSE | S126: FALSE
A127: 65 | C127: =C53*$K$2 -> 69495.25 | D127: 50036.25 | E127: 38918 | F127: 34053.25 | G127: 26408.25 | O127: FALSE | P127: FALSE | Q127: FALSE | R127: FALSE | S127: FALSE
A128: 66 | C128: =C54*$K$2 -> 73966.75 | D128: 53256.5 | E128: 41421.875 | F128: 36243.625 | G128: 28107.75 | O128: FALSE | P128: FALSE | Q128: FALSE | R128: FALSE | S128: FALSE
A129: 67 | C129: =C55*$K$2 -> 78727 | D129: 56683 | E129: 44086.625 | F129: 38575.625 | G129: 29915.875 | O129: FALSE | P129: FALSE | Q129: FALSE | R129: FALSE | S129: FALSE
A130: 68 | C130: =C56*$K$2 -> 83792.5 | D130: 60330.875 | E130: 46924.625 | F130: 41058.875 | G130: 31840.875 | O130: FALSE | P130: FALSE | Q130: FALSE | R130: FALSE | S130: FALSE
A131: 69 | C131: =C57*$K$2 -> 89185.25 | D131: 64212.5 | E131: 49944.125 | F131: 43700.25 | G131: 33891 | O131: FALSE | P131: FALSE | Q131: FALSE | R131: FALSE | S131: FALSE
A132: 70 | C132: =C58*$K$2 -> 94924.5 | D132: 68345.75 | E132: 53157.5 | F132: 46512.125 | G132: 36071.75 | O132: FALSE | P132: FALSE | Q132: FALSE | R132: FALSE | S132: FALSE
A133: 71 | C133: =C59*$K$2 -> 102249.125 | D133: 73618.875 | E133: 57259.125 | F133: 50102.25 | G133: 38854.75 | O133: FALSE | P133: FALSE | Q133: FALSE | R133: FALSE | S133: FALSE
A134: 72 | C134: =C60*$K$2 -> 107934.75 | D134: 77713.625 | E134: 60443.625 | F134: 52888 | G134: 41014.875 | O134: FALSE | P134: FALSE | Q134: FALSE | R134: FALSE | S134: FALSE
A135: 73 | C135: =C61*$K$2 -> 113938 | D135: 82035.25 | E135: 63805.5 | F135: 55829.125 | G135: 43296 | O135: FALSE | P135: FALSE | Q135: FALSE | R135: FALSE | S135: FALSE
A136: 74 | C136: =C62*$K$2 -> 120274 | D136: 86597.5 | E136: 67353 | F136: 58933.875 | G136: 45703.625 | O136: FALSE | P136: FALSE | Q136: FALSE | R136: FALSE | S136: FALSE
A137: 75 | C137: =C63*$K$2 -> 126962 | D137: 91412.75 | E137: 71098.5 | F137: 62211.875 | G137: 48246 | O137: FALSE | P137: FALSE | Q137: FALSE | R137: FALSE | S137: FALSE
A138: 76 | C138: =C64*$K$2 -> 134022.625 | D138: 96496.125 | E138: 75053 | F138: 65671.375 | G138: 50928.625 | O138: FALSE | P138: FALSE | Q138: FALSE | R138: FALSE | S138: FALSE
A139: 77 | C139: =C65*$K$2 -> 141476.5 | D139: 101862.75 | E139: 79227.5 | F139: 69323.375 | G139: 53761.125 | O139: FALSE | P139: FALSE | Q139: FALSE | R139: FALSE | S139: FALSE
A140: 78 | C140: =C66*$K$2 -> 149344.25 | D140: 107527.75 | E140: 83633 | F140: 73178.875 | G140: 56750.375 | O140: FALSE | P140: FALSE | Q140: FALSE | R140: FALSE | S140: FALSE
A141: 79 | C141: =C67*$K$2 -> 157649.25 | D141: 113507.625 | E141: 88283.25 | F141: 77248.875 | G141: 59907.375 | O141: FALSE | P141: FALSE | Q141: FALSE | R141: FALSE | S141: FALSE
A142: 80 | C142: =C68*$K$2 -> 164494 | D142: 118435.625 | E142: 92116.75 | F142: 80602.5 | G142: 62507.5 | O142: FALSE | P142: FALSE | Q142: FALSE | R142: FALSE | S142: FALSE
A143: 81 | C143: =C69*$K$2 -> 170920.75 | D143: 123062.5 | E143: 95715.125 | F143: 83751.25 | G143: 64949.5 | O143: FALSE | P143: FALSE | Q143: FALSE | R143: FALSE | S143: FALSE
A144: 82 | C144: =C70*$K$2 -> 177597.75 | D144: 127870.875 | E144: 99455.125 | F144: 87023.75 | G144: 67487.75 | O144: FALSE | P144: FALSE | Q144: FALSE | R144: FALSE | S144: FALSE
A145: 83 | C145: =C71*$K$2 -> 184536 | D145: 132866.25 | E145: 103340.875 | F145: 90422.75 | G145: 70123.625 | O145: FALSE | P145: FALSE | Q145: FALSE | R145: FALSE | S145: FALSE
A146: 84 | B146: o más | C146: =C72*$K$2 -> 191746.5 | D146: 138056.875 | E146: 107377.875 | F146: 93955.125 | G146: 72864 | O146: FALSE | P146: FALSE | Q146: FALSE | R146: FALSE | S146: FALSE
A147: 1 | B147: Hijo | C147: =C73*$K$2 -> 6052.75 | D147: 4358.75 | E147: 3389.375 | F147: 2965.875 | G147: 2300.375 | O147: TRUE | P147: TRUE | Q147: TRUE | R147: TRUE | S147: TRUE
A148: 2 | B148: Hijos | C148: =C74*$K$2 -> 9538.375 | D148: 6866.75 | E148: 5341.875 | F148: 4673.625 | G148: 3624.5 | O148: TRUE | P148: TRUE | Q148: TRUE | R148: TRUE | S148: TRUE
A149: 3 | B149: Hijos o más | C149: =C75*$K$2 -> 13916.375 | D149: 10019.625 | E149: 7793.5 | F149: 6818.625 | G149: 5288.25 | O149: TRUE | P149: TRUE | Q149: TRUE | R149: TRUE | S149: TRUE
A151: BUPA GLOBAL PREMIER
A152: TARIFAS ANUALES | U152: 1000
A153: EDAD | U153: 4 | V153: 156.25 | W153: 0.075
C154: 1000 | D154: 2000 | E154: 5000 | F154: 10000 | U154: tre | V154: sum usa | W154: recargos | X154: cotizador | Y154: 156.25
A155: 18 | C155: 86975 | D155: 63062.5 | E155: 45387.5 | F155: 33887.5 | I155: 62975 | J155: 45637.5 | K155: 32862.5 | L155: 24662.5 | N155: 59826.25 | O155: TRUE | P155: TRUE | Q155: TRUE | R155: TRUE | S155: TRUE | U155: 18346.875 | V155: 18503.125 | W155: 1387.734375 | X155: 19890.85938
A156: 19 | C156: 89900 | D156: 65187.5 | E156: 46912.5 | F156: 35025 | I156: 65312.5 | J156: 47312.5 | K156: 34050 | L156: 25562.5 | N156: 62046.875 | O156: TRUE | P156: TRUE | Q156: TRUE | R156: TRUE | S156: TRUE | U156: 19034.375 | V156: 19190.625 | W156: 1439.296875 | X156: 20629.92188
A157: 20 | C157: 92925 | D157: 67375 | E157: 48487.5 | F157: 36212.5 | I157: 67862.5 | J157: 49150 | K157: 35350 | L157: 26525 | N157: 64469.375 | O157: TRUE | P157: TRUE | Q157: TRUE | R157: TRUE | S157: TRUE | U157: 19784.375 | V157: 19940.625 | W157: 1495.546875 | X157: 21436.17188
A158: 21 | C158: 96050 | D158: 69650 | E158: 50125 | F158: 37425 | I158: 70437.5 | J158: 51012.5 | K158: 36675 | L158: 27500 | N158: 66915.625 | O158: TRUE | P158: TRUE | Q158: TRUE | R158: TRUE | S158: TRUE | U158: 20537.5 | V158: 20693.75 | W158: 1552.03125 | X158: 22245.78125
A159: 22 | C159: 99275 | D159: 71987.5 | E159: 51812.5 | F159: 38687.5 | I159: 72825 | J159: 52712.5 | K159: 37887.5 | L159: 28412.5 | N159: 69183.75 | O159: TRUE | P159: TRUE | Q159: TRUE | R159: TRUE | S159: TRUE | U159: 21240.625 | V159: 21396.875 | W159: 1604.765625 | X159: 23001.64062
A160: 23 | C160: 102625 | D160: 74412.5 | E160: 53550 | F160: 39987.5 | I160: 75412.5 | J160: 54575 | K160: 39225 | L160: 29387.5 | N160: 71641.875 | O160: TRUE | P160: TRUE | Q160: TRUE | R160: TRUE | S160: TRUE | U160: 22003.125 | V160: 22159.375 | W160: 1661.953125 | X160: 23821.32812
A161: 24 | C161: 106075 | D161: 76912.5 | E161: 55350 | F161: 41337.5 | I161: 77900 | J161: 56375 | K161: 40512.5 | L161: 30350 | N161: 74005 | O161: TRUE | P161: TRUE | Q161: TRUE | R161: TRUE | S161: TRUE | U161: 22731.25 | V161: 22887.5 | W161: 1716.5625 | X161: 24604.0625
A162: 25 | C162: 107725 | D162: 78112.5 | E162: 56212.5 | F162: 41975 | I162: 79475 | J162: 57512.5 | K162: 41300 | L162: 30937.5 | N162: 75501.25 | O162: TRUE | P162: TRUE | Q162: TRUE | R162: TRUE | S162: TRUE | U162: 23196.875 | V162: 23353.125 | W162: 1751.484375 | X162: 25104.60938
A163: 26 | C163: 111350 | D163: 80737.5 | E163: 58100 | F163: 43387.5 | I163: 82000 | J163: 59312.5 | K163: 42612.5 | L163: 31912.5 | N163: 77900 | O163: TRUE | P163: TRUE | Q163: TRUE | R163: TRUE | S163: TRUE | U163: 23934.375 | V163: 24090.625 | W163: 1806.796875 | X163: 25897.42188
A164: 27 | C164: 115087.5 | D164: 83450 | E164: 60062.5 | F164: 44850 | I164: 84537.5 | J164: 61150 | K164: 43912.5 | L164: 32887.5 | N164: 80310.625 | O164: TRUE | P164: TRUE | Q164: TRUE | R164: TRUE | S164: TRUE | U164: 24681.25 | V164: 24837.5 | W164: 1862.8125 | X164: 26700.3125
A165: 28 | C165: 118962.5 | D165: 86262.5 | E165: 62075 | F165: 46350 | I165: 87000 | J165: 62912.5 | K165: 45175 | L165: 33825 | N165: 82650 | O165: TRUE | P165: TRUE | Q165: TRUE | R165: TRUE | S165: TRUE | U165: 25406.25 | V165: 25562.5 | W165: 1917.1875 | X165: 27479.6875
A166: 29 | C166: 122962.5 | D166: 89162.5 | E166: 64175 | F166: 47912.5 | I166: 90287.5 | J166: 65287.5 | K166: 46825 | L166: 35037.5 | N166: 85773.125 | O166: TRUE | P166: TRUE | Q166: TRUE | R166: TRUE | S166: TRUE | U166: 26371.875 | V166: 26528.125 | W166: 1989.609375 | X166: 28517.73438
A167: 30 | C167: 127100 | D167: 92162.5 | E167: 66325 | F167: 49525 | I167: 93675 | J167: 67725 | K167: 48587.5 | L167: 36375 | N167: 88991.25 | O167: TRUE | P167: TRUE | Q167: TRUE | R167: TRUE | S167: TRUE | U167: 27368.75 | V167: 27525 | W167: 2064.375 | X167: 29589.375
A168: 31 | C168: 131387.5 | D168: 95262.5 | E168: 68562.5 | F168: 51200 | I168: 97062.5 | J168: 70162.5 | K168: 50337.5 | L168: 37662.5 | N168: 92209.375 | O168: TRUE | P168: TRUE | Q168: TRUE | R168: TRUE | S168: TRUE | U168: 28365.625 | V168: 28521.875 | W168: 2139.140625 | X168: 30661.01562
A169: 32 | C169: 135800 | D169: 98475 | E169: 70862.5 | F169: 52912.5 | I169: 100450 | J169: 72587.5 | K169: 52075 | L169: 38937.5 | N169: 95427.5 | O169: TRUE | P169: TRUE | Q169: TRUE | R169: TRUE | S169: TRUE | U169: 29359.375 | V169: 29515.625 | W169: 2213.671875 | X169: 31729.29688
A170: 33 | C170: 140375 | D170: 101787.5 | E170: 73250 | F170: 54700 | I170: 102612.5 | J170: 74137.5 | K170: 53162.5 | L170: 39750 | N170: 97481.875 | O170: TRUE | P170: TRUE | Q170: TRUE | R170: TRUE | S170: TRUE | U170: 29993.75 | V170: 30150 | W170: 2261.25 | X170: 32411.25
A171: 34 | C171: 145825 | D171: 105737.5 | E171: 76100 | F171: 56825 | I171: 104725 | J171: 75662.5 | K171: 54262.5 | L171: 40587.5 | N171: 99488.75 | O171: TRUE | P171: TRUE | Q171: TRUE | R171: TRUE | S171: TRUE | U171: 30615.625 | V171: 30771.875 | W171: 2307.890625 | X171: 33079.76562
A172: 35 | C172: 148225 | D172: 107475 | E172: 77350 | F172: 57750 | I172: 106862.5 | J172: 77200 | K172: 55325 | L172: 41375 | N172: 101519.375 | O172: TRUE | P172: TRUE | Q172: TRUE | R172: TRUE | S172: TRUE | U172: 31243.75 | V172: 31400 | W172: 2355 | X172: 33755
A173: 36 | C173: 150650 | D173: 109237.5 | E173: 78612.5 | F173: 58700 | I173: 109037.5 | J173: 78775 | K173: 56450 | L173: 42212.5 | N173: 103585.625 | O173: TRUE | P173: TRUE | Q173: TRUE | R173: TRUE | S173: TRUE | U173: 31881.25 | V173: 32037.5 | W173: 2402.8125 | X173: 34440.3125
A174: 37 | C174: 153125 | D174: 111025 | E174: 79900 | F174: 59662.5 | I174: 111112.5 | J174: 80262.5 | K174: 57537.5 | L174: 43025 | N174: 105556.875 | O174: TRUE | P174: TRUE | Q174: TRUE | R174: TRUE | S174: TRUE | U174: 32490.625 | V174: 32646.875 | W174: 2448.515625 | X174: 35095.39062
A175: 38 | C175: 155637.5 | D175: 112850 | E175: 81212.5 | F175: 60650 | I175: 113025 | J175: 81625 | K175: 58487.5 | L175: 43712.5 | N175: 107373.75 | O175: TRUE | P175: TRUE | Q175: TRUE | R175: TRUE | S175: TRUE | U175: 33053.125 | V175: 33209.375 | W175: 2490.703125 | X175: 35700.07812
A176: 39 | C176: 158187.5 | D176: 114700 | E176: 82550 | F176: 61637.5 | I176: 115962.5 | J176: 83750 | K176: 60000 | L176: 44850 | N176: 110164.375 | O176: TRUE | P176: TRUE | Q176: TRUE | R176: TRUE | S176: TRUE | U176: 33915.625 | V176: 34071.875 | W176: 2555.390625 | X176: 36627.26562
A177: 40 | C177: 160787.5 | D177: 116587.5 | E177: 83900 | F177: 62650 | I177: 117850 | J177: 85100 | K177: 61000 | L177: 45587.5 | N177: 111957.5 | O177: TRUE | P177: TRUE | Q177: TRUE | R177: TRUE | S177: TRUE | U177: 34468.75 | V177: 34625 | W177: 2596.875 | X177: 37221.875
A178: 41 | C178: 163425 | D178: 118500 | E178: 85275 | F178: 63675 | I178: 119675 | J178: 86450 | K178: 61937.5 | L178: 46275 | N178: 113691.25 | O178: TRUE | P178: TRUE | Q178: TRUE | R178: TRUE | S178: TRUE | U178: 35009.375 | V178: 35165.625 | W178: 2637.421875 | X178: 37803.04688
A179: 42 | C179: 166100 | D179: 120450 | E179: 86675 | F179: 64725 | I179: 121562.5 | J179: 87787.5 | K179: 62875 | L179: 47000 | N179: 115484.375 | O179: TRUE | P179: TRUE | Q179: TRUE | R179: TRUE | S179: TRUE | U179: 35565.625 | V179: 35721.875 | W179: 2679.140625 | X179: 38401.01562
A180: 43 | C180: 168837.5 | D180: 122425 | E180: 88100 | F180: 65787.5 | I180: 123750 | J180: 89350 | K180: 64025 | L180: 47837.5 | N180: 117562.5 | O180: TRUE | P180: TRUE | Q180: TRUE | R180: TRUE | S180: TRUE | U180: 36206.25 | V180: 36362.5 | W180: 2727.1875 | X180: 39089.6875
A181: 44 | C181: 171600 | D181: 124425 | E181: 89550 | F181: 66862.5 | I181: 126050 | J181: 90987.5 | K181: 65175 | L181: 48687.5 | N181: 119747.5 | O181: TRUE | P181: TRUE | Q181: TRUE | R181: TRUE | S181: TRUE | U181: 36881.25 | V181: 37037.5 | W181: 2777.8125 | X181: 39815.3125
A182: 45 | C182: 174425 | D182: 126475 | E182: 91012.5 | F182: 67962.5 | I182: 128200 | J182: 92550 | K182: 66275 | L182: 49512.5 | N182: 121790 | O182: TRUE | P182: TRUE | Q182: TRUE | R182: TRUE | S182: TRUE | U182: 37515.625 | V182: 37671.875 | W182: 2825.390625 | X182: 40497.26562
A183: 46 | C183: 177275 | D183: 128550 | E183: 92512.5 | F183: 69075 | I183: 130512.5 | J183: 94212.5 | K183: 67437.5 | L183: 50387.5 | N183: 123986.875 | O183: TRUE | P183: TRUE | Q183: TRUE | R183: TRUE | S183: TRUE | U183: 38193.75 | V183: 38350 | W183: 2876.25 | X183: 41226.25
A184: 47 | C184: 183412.5 | D184: 132987.5 | E184: 95712.5 | F184: 71462.5 | I184: 132662.5 | J184: 95762.5 | K184: 68550 | L184: 51225 | N184: 126029.375 | O184: TRUE | P184: TRUE | Q184: TRUE | R184: TRUE | S184: TRUE | U184: 38821.875 | V184: 38978.125 | W184: 2923.359375 | X184: 41901.48438
A185: 48 | C185: 186412.5 | D185: 135175 | E185: 97275 | F185: 72637.5 | I185: 135825 | J185: 98025 | K185: 71137.5 | L185: 53150 | N185: 129033.75 | O185: TRUE | P185: TRUE | Q185: TRUE | R185: TRUE | S185: TRUE | U185: 39750 | V185: 39906.25 | W185: 2992.96875 | X185: 42899.21875
A186: 49 | C186: 190600 | D186: 138200 | E186: 99462.5 | F186: 74275 | I186: 139550 | J186: 100725 | K186: 73100 | L186: 54587.5 | N186: 132572.5 | O186: TRUE | P186: TRUE | Q186: TRUE | R186: TRUE | S186: TRUE | U186: 40850 | V186: 41006.25 | W186: 3075.46875 | X186: 44081.71875
A187: 50 | C187: 197687.5 | D187: 143337.5 | E187: 103162.5 | F187: 77025 | I187: 143337.5 | J187: 103450 | K187: 75050 | L187: 56037.5 | N187: 136170.625 | O187: TRUE | P187: TRUE | Q187: TRUE | R187: TRUE | S187: TRUE | U187: 41962.5 | V187: 42118.75 | W187: 3158.90625 | X187: 45277.65625
A188: 51 | C188: 205037.5 | D188: 148675 | E188: 107000 | F188: 79887.5 | I188: 147037.5 | J188: 106100 | K188: 76975 | L188: 57462.5 | N188: 139685.625 | O188: TRUE | P188: TRUE | Q188: TRUE | R188: TRUE | S188: TRUE | U188: 43046.875 | V188: 43203.125 | W188: 3240.234375 | X188: 46443.35938
A189: 52 | C189: 208925 | D189: 151487.5 | E189: 109025 | F189: 81412.5 | I189: 152187.5 | J189: 109800 | K189: 79650 | L189: 59450 | N189: 144578.125 | O189: TRUE | P189: TRUE | Q189: TRUE | R189: TRUE | S189: TRUE | U189: 44559.375 | V189: 44715.625 | W189: 3353.671875 | X189: 48069.29688
A190: 53 | C190: 216687.5 | D190: 157125 | E190: 113075 | F190: 84437.5 | I190: 160762.5 | J190: 115975 | K190: 84112.5 | L190: 62787.5 | N190: 152724.375 | O190: TRUE | P190: TRUE | Q190: TRUE | R190: TRUE | S190: TRUE | U190: 47081.25 | V190: 47237.5 | W190: 3542.8125 | X190: 50780.3125
A191: 54 | C191: 232912.5 | D191: 168887.5 | E191: 121550 | F191: 90762.5 | I191: 170950 | J191: 123312.5 | K191: 89387.5 | L191: 66725 | N191: 162402.5 | O191: TRUE | P191: TRUE | Q191: TRUE | R191: TRUE | S191: TRUE | U191: 50075 | V191: 50231.25 | W191: 3767.34375 | X191: 53998.59375
A192: 55 | C192: 246050 | D192: 178412.5 | E192: 128400 | F192: 95875 | I192: 179862.5 | J192: 129725 | K192: 94025 | L192: 70162.5 | N192: 170869.375 | O192: TRUE | P192: TRUE | Q192: TRUE | R192: TRUE | S192: TRUE | U192: 52693.75 | V192: 52850 | W192: 3963.75 | X192: 56813.75
A193: 56 | C193: 255150 | D193: 185012.5 | E193: 133150 | F193: 99425 | I193: 187037.5 | J193: 134900 | K193: 97750 | L193: 72925 | N193: 177685.625 | O193: TRUE | P193: TRUE | Q193: TRUE | R193: TRUE | S193: TRUE | U193: 54803.125 | V193: 54959.375 | W193: 4121.953125 | X193: 59081.32812
A194: 57 | C194: 271687.5 | D194: 197000 | E194: 141775 | F194: 105862.5 | I194: 196137.5 | J194: 141425 | K194: 102500 | L194: 76450 | N194: 186330.625 | O194: TRUE | P194: TRUE | Q194: TRUE | R194: TRUE | S194: TRUE | U194: 57475 | V194: 57631.25 | W194: 4322.34375 | X194: 61953.59375
A195: 58 | C195: 289325 | D195: 209787.5 | E195: 150975 | F195: 112737.5 | I195: 210462.5 | J195: 151737.5 | K195: 109950 | L195: 82012.5 | N195: 199939.375 | O195: TRUE | P195: TRUE | Q195: TRUE | R195: TRUE | S195: TRUE | U195: 61687.5 | V195: 61843.75 | W195: 4638.28125 | X195: 66482.03125
A196: 59 | C196: 310462.5 | D196: 225112.5 | E196: 162012.5 | F196: 120975 | I196: 225137.5 | J196: 162312.5 | K196: 117562.5 | L196: 87675 | N196: 213880.625 | O196: TRUE | P196: TRUE | Q196: TRUE | R196: TRUE | S196: TRUE | U196: 65996.875 | V196: 66153.125 | W196: 4961.484375 | X196: 71114.60938
A197: 60 | C197: 330262.5 | D197: 239475 | E197: 172350 | F197: 128687.5 | I197: 240162.5 | J197: 173087.5 | K197: 125362.5 | L197: 93487.5 | N197: 228154.375 | O197: TRUE | P197: TRUE | Q197: TRUE | R197: TRUE | S197: TRUE | U197: 70412.5 | V197: 70568.75 | W197: 5292.65625 | X197: 75861.40625
A198: 61 | C198: 351362.5 | D198: 254775 | E198: 183350 | F198: 136912.5 | I198: 255300 | J198: 183987.5 | K198: 133225 | L198: 99337.5 | N198: 242535 | O198: TRUE | P198: TRUE | Q198: TRUE | R198: TRUE | S198: TRUE | U198: 74859.375 | V198: 75015.625 | W198: 5626.171875 | X198: 80641.79688
A199: 62 | C199: 373837.5 | D199: 271075 | E199: 195087.5 | F199: 145675 | I199: 270812.5 | J199: 195150 | K199: 141287.5 | L199: 105325 | N199: 257271.875 | O199: TRUE | P199: TRUE | Q199: TRUE | R199: TRUE | S199: TRUE | U199: 79418.75 | V199: 79575 | W199: 5968.125 | X199: 85543.125
A200: 63 | C200: 401237.5 | D200: 290937.5 | E200: 209375 | F200: 156350 | I200: 293600 | J200: 211550 | K200: 153150 | L200: 114125 | N200: 278920 | O200: TRUE | P200: TRUE | Q200: TRUE | R200: TRUE | S200: TRUE | U200: 86115.625 | V200: 86271.875 | W200: 6470.390625 | X200: 92742.26562
A201: 64 | C201: 435825 | D201: 316012.5 | E201: 227425 | F201: 169825 | I201: 319750 | J201: 230337.5 | K201: 166725 | L201: 124237.5 | N201: 303762.5 | O201: TRUE | P201: TRUE | Q201: TRUE | R201: TRUE | S201: TRUE | U201: 93796.875 | V201: 93953.125 | W201: 7046.484375 | X201: 100999.6094
A202: 65 | C202: 467975 | D202: 339325 | E202: 244200 | F202: 182350 | I202: 340462.5 | J202: 245250 | K202: 177475 | L202: 132237.5 | N202: 323439.375 | O202: TRUE | P202: TRUE | Q202: TRUE | R202: TRUE | S202: TRUE | U202: 99884.375 | V202: 100040.625 | W202: 7503.046875 | X202: 107543.6719
A203: 66 | C203: 498087.5 | D203: 361162.5 | E203: 259912.5 | F203: 194075 | I203: 361200 | J203: 260175 | K203: 188262.5 | L203: 140262.5 | N203: 343140 | O203: TRUE | P203: TRUE | Q203: TRUE | R203: TRUE | S203: TRUE | U203: 105975 | V203: 106131.25 | W203: 7959.84375 | X203: 114091.0938
... 1278 more rows
